Workbook

Sheet Fahrzeuge
A1: Antragsteller ist vorsteuerabzugsberechtigt [Auswahlbox]: | E1: ja | F1: nein | G1: Stand: 05.07.2018 | H1: =MATCH("Summe",A:A,0) -> 33 | I1: FKZ
G2: korrigiert: 11.05.2022 | I2: 03EMI3
A3: Hinweise: | G3: ergänzt: 05.10.2022
A4: Mit dieser Tabelle können Sie die förderfähigen Investitionsmehrkosten ermitteln, die in das AZA-Formular in easyOnline eingegeben werden müssen.
A5: =IF(Fahrzeuge!C1="","1. Wählen Sie zunächst aus, ob Sie zum Vorsteuerabzug berechtigt sind!","") -> 1. Wählen Sie zunächst aus, ob Sie zum Vorsteuerabzug berechtigt sind!
A6: 2. Wählen Sie in der Liste unten die gewünschten Fahrzeuge(Auswahlbox) und die entsprechende Anzahl aus.
A7: 3. Für Ladeinfrastruktur sowie LKW, Busse und Sonderfahrzeuge wählen Sie bitte die entsprechenden Registerkarten.
A8: 4. Speichern sie die ausgefüllten Arbeitsblätter (außer 'Vorlage für AZA') als PDF und fügen Sie sie dem Antrag bei.
A9: 5. Grün unterlegte Felder sind Eingabefelder.
A10: Die Registerkarte 'Vorlage für AZA' stellt Ihre Eingaben so dar, wie sie in das easyOnline-Formular eingetragen werden müssen.
A12: Pos. | B12: Typ E-Fahrzeug [Auswahlbox] | C12: Fahrzeugsegment nach Kraftfahrt-Bundesamt | D12: =IF(Fahrzeuge!$C$1="nein","Bruttopreis E-Fahrzeug",IF(Fahrzeuge!$C$1="ja","Nettopreis E-Fahrzeug","Bitte wählen sie aus, ob sie zum Vorsteuerabzug berechtigt sind!")) -> Bitte wählen sie aus, ob sie zum Vorsteuerabzug berechtigt sind! | E12: Typ Referenzfahrzeug | F12: =IF(Fahrzeuge!$C$1="nein","Bruttopreis Referenzfahrzeug",IF(Fahrzeuge!$C$1="ja","Nettopreis Referenzfahrzeug","Bitte wählen sie aus, ob sie zum Vorsteuerabzug berechtigt sind!")) -> Bitte wählen sie aus, ob sie zum Vorsteuerabzug berechtigt sind! | G12: =IF($C$1="nein","Förderfähige Ausgaben pro Fahrzeug (brutto)",IF($C$1="ja","Förderfähige Ausgaben pro Fahrzeug (netto)","Bitte wählen sie aus, ob sie zum Vorsteuerabzug berechtigt sind!")) -> Bitte wählen sie aus, ob sie zum Vorsteuerabzug berechtigt sind! | H12: Anzahl zu beschaffender Fahrzeuge des Typs | I12: Förderfähige Ausgaben | J12: Korrekturfeld PtJ
A13: 1 | C13: =IF(B13>0,CONCATENATE(VLOOKUP(B13,L$38:U$296,9,0)," (",VLOOKUP(B13,L$38:U$296,10,0),")"),"") ->  | D13: =IF($B13>0,IF(Fahrzeuge!$C$1="nein",VLOOKUP($B13,$L$37:$S$296,3,0),IF(Fahrzeuge!$C$1="ja",VLOOKUP($B13,$L$37:$S$296,2,0),"Bitte wählen sie aus, ob sie zum Vorsteuerabzug berechtigt sind!")),"") ->  | E13: =IF($B13>0,VLOOKUP($B13,$L$37:$S$296,4,0),"") ->  | F13: =IF($B13>0,IF(Fahrzeuge!$C$1="nein",VLOOKUP($B13,$L$37:$S$296,6,0),IF(Fahrzeuge!$C$1="ja",VLOOKUP($B13,$L$37:$S$296,5,0),"Bitte wählen sie aus, ob sie zum Vorsteuerabzug berechtigt sind!")),"") ->  | G13: =IF(B13>0,IF($C$1="nein",VLOOKUP($B13,$L$37:$S$296,8,0),IF($C$1="ja",VLOOKUP($B13,$L$37:$S$296,7,0),"Bitte wählen sie aus, ob sie zum Vorsteuerabzug berechtigt sind!")),"") ->  | I13: =IF(B13>0,G13*H13,"") -> 
A14: =A13+1 -> 2 | D14: =IF($B14>0,IF(Fahrzeuge!$C$1="nein",VLOOKUP($B14,$L$37:$S$296,3,0),IF(Fahrzeuge!$C$1="ja",VLOOKUP($B14,$L$37:$S$296,2,0),"Bitte wählen sie aus, ob sie zum Vorsteuerabzug berechtigt sind!")),"") ->  | F14: =IF($B14>0,IF(Fahrzeuge!$C$1="nein",VLOOKUP($B14,$L$37:$S$296,6,0),IF(Fahrzeuge!$C$1="ja",VLOOKUP($B14,$L$37:$S$296,5,0),"Bitte wählen sie aus, ob sie zum Vorsteuerabzug berechtigt sind!")),"") -> 
A15: =A14+1 -> 3 | D15: =IF($B15>0,IF(Fahrzeuge!$C$1="nein",VLOOKUP($B15,$L$37:$S$296,3,0),IF(Fahrzeuge!$C$1="ja",VLOOKUP($B15,$L$37:$S$296,2,0),"Bitte wählen sie aus, ob sie zum Vorsteuerabzug berechtigt sind!")),"") ->  | F15: =IF($B15>0,IF(Fahrzeuge!$C$1="nein",VLOOKUP($B15,$L$37:$S$296,6,0),IF(Fahrzeuge!$C$1="ja",VLOOKUP($B15,$L$37:$S$296,5,0),"Bitte wählen sie aus, ob sie zum Vorsteuerabzug berechtigt sind!")),"") -> 
A16: =A15+1 -> 4 | D16: =IF($B16>0,IF(Fahrzeuge!$C$1="nein",VLOOKUP($B16,$L$37:$S$296,3,0),IF(Fahrzeuge!$C$1="ja",VLOOKUP($B16,$L$37:$S$296,2,0),"Bitte wählen sie aus, ob sie zum Vorsteuerabzug berechtigt sind!")),"") ->  | F16: =IF($B16>0,IF(Fahrzeuge!$C$1="nein",VLOOKUP($B16,$L$37:$S$296,6,0),IF(Fahrzeuge!$C$1="ja",VLOOKUP($B16,$L$37:$S$296,5,0),"Bitte wählen sie aus, ob sie zum Vorsteuerabzug berechtigt sind!")),"") -> 
A17: =A16+1 -> 5 | D17: =IF($B17>0,IF(Fahrzeuge!$C$1="nein",VLOOKUP($B17,$L$37:$S$296,3,0),IF(Fahrzeuge!$C$1="ja",VLOOKUP($B17,$L$37:$S$296,2,0),"Bitte wählen sie aus, ob sie zum Vorsteuerabzug berechtigt sind!")),"") ->  | F17: =IF($B17>0,IF(Fahrzeuge!$C$1="nein",VLOOKUP($B17,$L$37:$S$296,6,0),IF(Fahrzeuge!$C$1="ja",VLOOKUP($B17,$L$37:$S$296,5,0),"Bitte wählen sie aus, ob sie zum Vorsteuerabzug berechtigt sind!")),"") -> 
A18: =A17+1 -> 6 | D18: =IF($B18>0,IF(Fahrzeuge!$C$1="nein",VLOOKUP($B18,$L$37:$S$296,3,0),IF(Fahrzeuge!$C$1="ja",VLOOKUP($B18,$L$37:$S$296,2,0),"Bitte wählen sie aus, ob sie zum Vorsteuerabzug berechtigt sind!")),"") ->  | F18: =IF($B18>0,IF(Fahrzeuge!$C$1="nein",VLOOKUP($B18,$L$37:$S$296,6,0),IF(Fahrzeuge!$C$1="ja",VLOOKUP($B18,$L$37:$S$296,5,0),"Bitte wählen sie aus, ob sie zum Vorsteuerabzug berechtigt sind!")),"") -> 
A19: 7 | D19: =IF($B19>0,IF(Fahrzeuge!$C$1="nein",VLOOKUP($B19,$L$37:$S$296,3,0),IF(Fahrzeuge!$C$1="ja",VLOOKUP($B19,$L$37:$S$296,2,0),"Bitte wählen sie aus, ob sie zum Vorsteuerabzug berechtigt sind!")),"") ->  | F19: =IF($B19>0,IF(Fahrzeuge!$C$1="nein",VLOOKUP($B19,$L$37:$S$296,6,0),IF(Fahrzeuge!$C$1="ja",VLOOKUP($B19,$L$37:$S$296,5,0),"Bitte wählen sie aus, ob sie zum Vorsteuerabzug berechtigt sind!")),"") -> 
A20: 8 | D20: =IF($B20>0,IF(Fahrzeuge!$C$1="nein",VLOOKUP($B20,$L$37:$S$296,3,0),IF(Fahrzeuge!$C$1="ja",VLOOKUP($B20,$L$37:$S$296,2,0),"Bitte wählen sie aus, ob sie zum Vorsteuerabzug berechtigt sind!")),"") ->  | F20: =IF($B20>0,IF(Fahrzeuge!$C$1="nein",VLOOKUP($B20,$L$37:$S$296,6,0),IF(Fahrzeuge!$C$1="ja",VLOOKUP($B20,$L$37:$S$296,5,0),"Bitte wählen sie aus, ob sie zum Vorsteuerabzug berechtigt sind!")),"") -> 
A21: 9 | D21: =IF($B21>0,IF(Fahrzeuge!$C$1="nein",VLOOKUP($B21,$L$37:$S$296,3,0),IF(Fahrzeuge!$C$1="ja",VLOOKUP($B21,$L$37:$S$296,2,0),"Bitte wählen sie aus, ob sie zum Vorsteuerabzug berechtigt sind!")),"") ->  | F21: =IF($B21>0,IF(Fahrzeuge!$C$1="nein",VLOOKUP($B21,$L$37:$S$296,6,0),IF(Fahrzeuge!$C$1="ja",VLOOKUP($B21,$L$37:$S$296,5,0),"Bitte wählen sie aus, ob sie zum Vorsteuerabzug berechtigt sind!")),"") -> 
A22: 10 | D22: =IF($B22>0,IF(Fahrzeuge!$C$1="nein",VLOOKUP($B22,$L$37:$S$296,3,0),IF(Fahrzeuge!$C$1="ja",VLOOKUP($B22,$L$37:$S$296,2,0),"Bitte wählen sie aus, ob sie zum Vorsteuerabzug berechtigt sind!")),"") ->  | F22: =IF($B22>0,IF(Fahrzeuge!$C$1="nein",VLOOKUP($B22,$L$37:$S$296,6,0),IF(Fahrzeuge!$C$1="ja",VLOOKUP($B22,$L$37:$S$296,5,0),"Bitte wählen sie aus, ob sie zum Vorsteuerabzug berechtigt sind!")),"") -> 
A23: 11 | D23: =IF($B23>0,IF(Fahrzeuge!$C$1="nein",VLOOKUP($B23,$L$37:$S$296,3,0),IF(Fahrzeuge!$C$1="ja",VLOOKUP($B23,$L$37:$S$296,2,0),"Bitte wählen sie aus, ob sie zum Vorsteuerabzug berechtigt sind!")),"") ->  | F23: =IF($B23>0,IF(Fahrzeuge!$C$1="nein",VLOOKUP($B23,$L$37:$S$296,6,0),IF(Fahrzeuge!$C$1="ja",VLOOKUP($B23,$L$37:$S$296,5,0),"Bitte wählen sie aus, ob sie zum Vorsteuerabzug berechtigt sind!")),"") -> 
A24: 12 | D24: =IF($B24>0,IF(Fahrzeuge!$C$1="nein",VLOOKUP($B24,$L$37:$S$296,3,0),IF(Fahrzeuge!$C$1="ja",VLOOKUP($B24,$L$37:$S$296,2,0),"Bitte wählen sie aus, ob sie zum Vorsteuerabzug berechtigt sind!")),"") ->  | F24: =IF($B24>0,IF(Fahrzeuge!$C$1="nein",VLOOKUP($B24,$L$37:$S$296,6,0),IF(Fahrzeuge!$C$1="ja",VLOOKUP($B24,$L$37:$S$296,5,0),"Bitte wählen sie aus, ob sie zum Vorsteuerabzug berechtigt sind!")),"") -> 
A25: 13 | D25: =IF($B25>0,IF(Fahrzeuge!$C$1="nein",VLOOKUP($B25,$L$37:$S$296,3,0),IF(Fahrzeuge!$C$1="ja",VLOOKUP($B25,$L$37:$S$296,2,0),"Bitte wählen sie aus, ob sie zum Vorsteuerabzug berechtigt sind!")),"") ->  | F25: =IF($B25>0,IF(Fahrzeuge!$C$1="nein",VLOOKUP($B25,$L$37:$S$296,6,0),IF(Fahrzeuge!$C$1="ja",VLOOKUP($B25,$L$37:$S$296,5,0),"Bitte wählen sie aus, ob sie zum Vorsteuerabzug berechtigt sind!")),"") -> 
A26: 14 | D26: =IF($B26>0,IF(Fahrzeuge!$C$1="nein",VLOOKUP($B26,$L$37:$S$296,3,0),IF(Fahrzeuge!$C$1="ja",VLOOKUP($B26,$L$37:$S$296,2,0),"Bitte wählen sie aus, ob sie zum Vorsteuerabzug berechtigt sind!")),"") ->  | F26: =IF($B26>0,IF(Fahrzeuge!$C$1="nein",VLOOKUP($B26,$L$37:$S$296,6,0),IF(Fahrzeuge!$C$1="ja",VLOOKUP($B26,$L$37:$S$296,5,0),"Bitte wählen sie aus, ob sie zum Vorsteuerabzug berechtigt sind!")),"") -> 
A27: 15 | D27: =IF($B27>0,IF(Fahrzeuge!$C$1="nein",VLOOKUP($B27,$L$37:$S$296,3,0),IF(Fahrzeuge!$C$1="ja",VLOOKUP($B27,$L$37:$S$296,2,0),"Bitte wählen sie aus, ob sie zum Vorsteuerabzug berechtigt sind!")),"") ->  | F27: =IF($B27>0,IF(Fahrzeuge!$C$1="nein",VLOOKUP($B27,$L$37:$S$296,6,0),IF(Fahrzeuge!$C$1="ja",VLOOKUP($B27,$L$37:$S$296,5,0),"Bitte wählen sie aus, ob sie zum Vorsteuerabzug berechtigt sind!")),"") -> 
A28: 16 | D28: =IF($B28>0,IF(Fahrzeuge!$C$1="nein",VLOOKUP($B28,$L$37:$S$296,3,0),IF(Fahrzeuge!$C$1="ja",VLOOKUP($B28,$L$37:$S$296,2,0),"Bitte wählen sie aus, ob sie zum Vorsteuerabzug berechtigt sind!")),"") ->  | F28: =IF($B28>0,IF(Fahrzeuge!$C$1="nein",VLOOKUP($B28,$L$37:$S$296,6,0),IF(Fahrzeuge!$C$1="ja",VLOOKUP($B28,$L$37:$S$296,5,0),"Bitte wählen sie aus, ob sie zum Vorsteuerabzug berechtigt sind!")),"") -> 
A29: =A28+1 -> 17 | D29: =IF($B29>0,IF(Fahrzeuge!$C$1="nein",VLOOKUP($B29,$L$37:$S$296,3,0),IF(Fahrzeuge!$C$1="ja",VLOOKUP($B29,$L$37:$S$296,2,0),"Bitte wählen sie aus, ob sie zum Vorsteuerabzug berechtigt sind!")),"") ->  | F29: =IF($B29>0,IF(Fahrzeuge!$C$1="nein",VLOOKUP($B29,$L$37:$S$296,6,0),IF(Fahrzeuge!$C$1="ja",VLOOKUP($B29,$L$37:$S$296,5,0),"Bitte wählen sie aus, ob sie zum Vorsteuerabzug berechtigt sind!")),"") -> 
A30: =A29+1 -> 18 | D30: =IF($B30>0,IF(Fahrzeuge!$C$1="nein",VLOOKUP($B30,$L$37:$S$296,3,0),IF(Fahrzeuge!$C$1="ja",VLOOKUP($B30,$L$37:$S$296,2,0),"Bitte wählen sie aus, ob sie zum Vorsteuerabzug berechtigt sind!")),"") ->  | F30: =IF($B30>0,IF(Fahrzeuge!$C$1="nein",VLOOKUP($B30,$L$37:$S$296,6,0),IF(Fahrzeuge!$C$1="ja",VLOOKUP($B30,$L$37:$S$296,5,0),"Bitte wählen sie aus, ob sie zum Vorsteuerabzug berechtigt sind!")),"") -> 
A31: =A30+1 -> 19 | D31: =IF($B31>0,IF(Fahrzeuge!$C$1="nein",VLOOKUP($B31,$L$37:$S$296,3,0),IF(Fahrzeuge!$C$1="ja",VLOOKUP($B31,$L$37:$S$296,2,0),"Bitte wählen sie aus, ob sie zum Vorsteuerabzug berechtigt sind!")),"") ->  | F31: =IF($B31>0,IF(Fahrzeuge!$C$1="nein",VLOOKUP($B31,$L$37:$S$296,6,0),IF(Fahrzeuge!$C$1="ja",VLOOKUP($B31,$L$37:$S$296,5,0),"Bitte wählen sie aus, ob sie zum Vorsteuerabzug berechtigt sind!")),"") -> 
A32: =A31+1 -> 20 | D32: =IF($B32>0,IF(Fahrzeuge!$C$1="nein",VLOOKUP($B32,$L$37:$S$296,3,0),IF(Fahrzeuge!$C$1="ja",VLOOKUP($B32,$L$37:$S$296,2,0),"Bitte wählen sie aus, ob sie zum Vorsteuerabzug berechtigt sind!")),"") ->  | F32: =IF($B32>0,IF(Fahrzeuge!$C$1="nein",VLOOKUP($B32,$L$37:$S$296,6,0),IF(Fahrzeuge!$C$1="ja",VLOOKUP($B32,$L$37:$S$296,5,0),"Bitte wählen sie aus, ob sie zum Vorsteuerabzug berechtigt sind!")),"") -> 
A33: Summe | I33: =SUM(I13:I32) -> 0
A35: * | B35: Bei Beantragung von Fahrzeugsegmenten erfolgt die Abrechnung nach den Pauschalwerten des tatsächlich beschafften Fahrzeugs!
L36: E-Fahrzeug | M36: Listenpreis | O36: Vergleichsfahrzeug | P36: Listenpreis | R36: förderfähige Mehrausgaben | T36: Info Segment | U36: Fahzeug-klasse Abk. | V36: Kommentare | W36: ergänzt am
M37: netto | N37: brutto | P37: netto | Q37: brutto | R37: netto | S37: brutto
L38: AIWAYS U5 (alle Versionen) | M38: =ROUND(N38/1.19,2) -> 32271.43 | N38: 38403 | O38: VW Tiguan Life 1.5 TSI OPF Gang 110 kW | P38: =ROUND(29901.68/1.16,2) -> 25777.31 | Q38: =ROUND(P38*1.19,2) -> 30675 | R38: =ROUND(M38-P38,0) -> 6494 | S38: =ROUND(N38-Q38,0) -> 7728 | T38: Geländewagen / SUV | U38: PKW | W38: 2021-06-22
L39: Aixam eCity | M39: 12092.44 | N39: 14390 | O39: Mercedes Benz smart 52 kW | P39: =ROUND(Q39/1.19,2) -> 9382.35 | Q39: 11165 | R39: =ROUND(M39-P39,0) -> 2710 | S39: =ROUND(N39-Q39,0) -> 3225 | T39: Leichtfahrzeug | U39: LFZ | W39: 2020-03-24
L40: ARI 458 (alle Versionen) | M40: 11700 | N40: 13923 | O40: Piaggio Porter Entry Level Pick-Up | P40: =ROUND(Q40/1.19,2) -> 11214.29 | Q40: 13345 | R40: =ROUND(M40-P40,0) -> 486 | S40: 578 | T40: Leichtfahrzeug | U40: LFZ
L41: ARI 901 (alle Versionen) | M41: 29800 | N41: 35462 | O41: Nissan NV200 Kasten | P41: 15350 | Q41: 18266.5 | R41: 14450 | S41: 17196 | T41: Utility (N1) | U41: NFZ
L42: Audi A3 e-tron | M42: 31848.74 | N42: 37900 | O42: Audi A3 Sportback Attraction | P42: 23949.58 | Q42: 28500 | R42: 7899 | S42: 9400 | T42: Kompaktklasse | U42: PKW
L43: Audi A3 Sportback 40 TFSIe (alle Varianten) | M43: 32302.52 | N43: 38440 | O43: A3 Sportback 35 TFSI 6-Gang 110 kW | P43: 24285.71 | Q43: =ROUNDUP(P43*1.19,2) -> 28900 | R43: 8017 | S43: 9540 | T43: Kompaktklasse | U43: PKW | W43: 2020-12-17
L44: Audi e-tron 50 quattro | M44: 58067.23 | N44: 69100 | O44: Audi A6 allroad quattro 3.0 TDI 200kW | P44: 51302.52 | Q44: 61050 | R44: 6765 | S44: 8050 | T44: SUV | U44: PKW | W44: 2020-03-24
L45: Audi e-tron 55 Quattro | M45: 67142.86 | N45: 79900 | O45: Audi A6 allroad quattro 3.0 TDI 200kW | P45: 51302.52 | Q45: 61050 | R45: 15840 | S45: 18850 | T45: SUV | U45: PKW
L46: Audi Q4 e-tron 55 kWh (alle Varianten) | M46: 35210.08 | N46: 41900 | O46: Audi Q3 35 TFSI 6-Gang 110 kW | P46: 30294.12 | Q46: =ROUND(P46*1.19,2) -> 36050 | R46: =ROUND(M46-P46,0) -> 4916 | S46: =ROUND(N46-Q46,0) -> 5850 | T46: Geländewagen / SUV | U46: PKW | W46: 2021-09-07
L47: Audi Q4 e-tron 82 kWh (alle Varianten) | M47: 39915.97 | N47: 47500 | O47: Audi Q3 35 TFSI 6-Gang 110 kW | P47: 30294.12 | Q47: =ROUND(P47*1.19,2) -> 36050 | R47: =ROUND(M47-P47,0) -> 9622 | S47: =ROUND(N47-Q47,0) -> 11450 | T47: Geländewagen / SUV | U47: PKW | W47: 2021-09-07
L48: Audi Q5 TFSI e quattro | M48: 50798.32 | N48: 60450 | O48: Audi Q5 sport 45 TFSI quattro | P48: 45378.15 | Q48: 54000 | R48: 5420 | S48: 6450 | T48: Geländewagen / SUV | U48: PKW
L49: Audi Q7 e-tron quattro | M49: 70084.03 | N49: 83400 | O49: Audi Q7 3.0 TDI 200 KW | P49: 54117.65 | Q49: 64400 | R49: =ROUND(M49-P49,0) -> 15966 | S49: =ROUND(N49-Q49,0) -> 19000 | T49: Geländewagen / SUV | U49: PKW
L50: BMW 225xe iPerformance Active Tourer | M50: 33319.33 | N50: 39650 | O50: BMW 220i Active Tourer | P50: 29411.76 | Q50: 35000 | R50: =ROUND(M50-P50,0) -> 3908 | S50: =ROUND(N50-Q50,0) -> 4650 | T50: Kompaktklasse | U50: PKW
L51: BMW 330e Advantage (10,8 kWh) | M51: 43319.33 | N51: 51550 | O51: BMW 330i Advantage (G20) | P51: 37605.04 | Q51: 44750 | R51: 5714 | S51: 6800 | T51: Mittelklasse | U51: PKW | V51: Ab BJ 07/2020 Bezeichnung 330e xDrive (nutzbare Batterie-Gr. Nun 11,15kWh aber gleiche Batterie)
L52: BMW 330e iPerformance ( 7,4 kWh) | M52: 38361.34 | N52: 45649.99 | O52: BMW 320i Advantage (F30) | P52: 32563.03 | Q52: 38750 | R52: =ROUND(M52-P52,0) -> 5798 | S52: 6900 | T52: Mittelklasse | U52: PKW | V52: Ergänzung der Batteriegröße 10.9.20
L53: BMW 530e iPerformance | M53: 47058.82 | N53: 56000 | O53: BMW 530i | P53: 44621.85 | Q53: 53100 | R53: 2437 | S53: 2900 | T53: Obere Mittelklasse | U53: PKW
L54: BMW 740e, Le (Räderkategorie 1,2; ohne xDrive) | M54: 82268.91 | N54: 97900 | O54: BMW 740i | P54: 79159.66 | Q54: 94200 | R54: 3109 | S54: 3700 | T54: Oberklasse | U54: PKW
L55: BMW 740e, Le (Räderkategorie 3; xDrive) | M55: nicht förderfähig gemäß FRL | N55: nicht förderfähig gemäß FRL | P55: 0 | Q55: 0 | R55: 0 | S55: 0 | T55: Oberklasse | U55: PKW
L56: BMW 745e, Le (ohne xDrive) | M56: 89411.76 | N56: 106400 | O56: BMW 730 Ld | P56: 78907.56 | Q56: 93900 | R56: 10504 | S56: 12500 | T56: Oberklasse | U56: PKW
L57: BMW i3 (33,2 kWh, 27,2 kWh nutzbar) | M57: 31554.62 | N57: 37550 | O57: BMW 218 i Active Tourer | P57: 24705.88 | Q57: 29400 | R57: =ROUND(M57-P57,0) -> 6849 | S57: 8150 | T57: Kleinwagen | U57: PKW
L58: BMW i3 (42,2 kWh, 37,9 kWh nutzbar) | M58: 31932.77 | N58: 38000 | O58: BMW 218 i Active Tourer | P58: 24705.88 | Q58: 29400 | R58: 7227 | S58: 8600 | T58: Kleinwagen | U58: PKW
L59: BMW i3 Range Extender (33,2 kWh, 27,2 kWh nutzbar) | M59: 31554.62 | N59: 37550 | O59: BMW 218 i Active Tourer | P59: 24705.88 | Q59: 29400 | R59: 6849 | S59: 8150 | T59: Kleinwagen | U59: PKW
L60: BMW i3s (33,2 kWh, 27,2 kWh nutzbar) | M60: 34579.83 | N60: 41150 | O60: BMW 218 i Active Tourer Sport Line | P60: 28781.51 | Q60: 34250 | R60: 5798 | S60: 6900 | T60: Kleinwagen | U60: PKW
L61: BMW i3s (42,2 kWh, 37,9 kWh nutzbar) | M61: 34957.98 | N61: 41600 | O61: BMW 218 i Active Tourer Sport Line | P61: 28781.51 | Q61: 34250 | R61: 6176 | S61: 7350 | T61: Kleinwagen | U61: PKW
L62: BMW i3s Range Extender (33,2 kWh, 27,2 kWh nutzbar) | M62: 34579.83 | N62: 41150 | O62: BMW 218 i Active Tourer Sport Line | P62: 28781.51 | Q62: 34250 | R62: 5798 | S62: 6900 | T62: Kleinwagen | U62: PKW
L63: BMW i8 Coupé | M63: 115966.39 | N63: 138000 | O63: Porsche 911 Carrera 4S | P63: 107545.38 | Q63: 127979 | R63: 8421 | S63: 10021 | T63: Sportwagen | U63: PKW
L64: BMW i8 Roadster | M64: 130252.1 | N64: 155000 | O64: Porsche 911 Carrera 4S Cabrio | P64: 127948.74 | Q64: 152259 | R64: 2303 | S64: 2741 | T64: Sportwagen | U64: PKW
L65: BMW iX3 (210 KW) | M65: 54159.66 | N65: 64450 | O65: BMW X3 xDrive30i | P65: =ROUND(53028.56/1.16,2) -> 45714.28 | Q65: =ROUNDUP(P65*1.19,2) -> 54400 | R65: =ROUND(M65-P65,0) -> 8445 | S65: 10050 | T65: Geländewagen / SUV | U65: PKW | W65: 2020-12-17
L66: BMW X1 xDrive25e (alle Modelle) | M66: 38361.34 | N66: 45650 | O66: BMW X1 xDrive 20i | P66: 35210.08 | Q66: 41900 | R66: =ROUND(M66-P66,0) -> 3151 | S66: =ROUND(N66-Q66,0) -> 3750 | T66: SUV | U66: PKW | W66: 2020-04-24
L67: BMW X3 xDrive30e (alle Modelle) | M67: 48235.29 | N67: 57400 | O67: BMW X3 xDrive 30i | P67: 45714.29 | Q67: 54400 | R67: =ROUND(M67-P67,0) -> 2521 | S67: =ROUND(N67-Q67,0) -> 3000 | T67: Geländewagen / SUV | U67: PKW | W67: 2020-04-24
L68: BMW X5 xDrive40e iPerformance | M68: nicht förderfähig gemäß FRL | N68: nicht förderfähig gemäß FRL | P68: 0 | Q68: 0 | R68: 0 | S68: 0 | T68: Geländewagen / SUV | U68: PKW
L69: CITROËN Berlingo Electric L1 | M69: 20990 | N69: 24978.1 | O69: Citroën Berlingo L1 | P69: 14500 | Q69: 17255 | R69: =ROUND(M69-P69,0) -> 6490 | S69: 7723 | T69: Utility (N1) | U69: NFZ
L70: CITROËN Berlingo Electric L1, Batterie zur Miete | M70: 15690 | N70: 18671.1 | O70: Citroën Berlingo L1 | P70: 14500 | Q70: 17255 | R70: 1190 | S70: 1416 | T70: Utility (N1) | U70: NFZ
L71: CITROËN Berlingo Electric L2 | M71: 22040 | N71: 26227.6 | O71: Citroën Berlingo L2 | P71: 15350 | Q71: 18266.5 | R71: 6690 | S71: 7961 | T71: Utility (N1) | U71: NFZ
L72: CITROËN Berlingo Electric L2, Batterie zur Miete | M72: 16740 | N72: 19920.6 | O72: Citroën Berlingo L2 | P72: 15350 | Q72: 18266.5 | R72: 1390 | S72: 1654 | T72: Utility (N1) | U72: NFZ
L73: CITROËN ë-Berlingo (alle Versionen) | M73: 30747.9 | N73: 36590 | O73: Citroën Berlingo Feel 81 kW | P73: =ROUND(23740/1.19,2) -> 19949.58 | Q73: =P73*1.19 -> 23740.0002 | R73: 10798 | S73: 12850 | T73: Großraum-Van | U73: PKW | W73: 2021-06-23
L74: CITROËN C-Zero | M74: 18319.33 | N74: 21800 | O74: Citroën C1 Cti 68 (5 Türer) | P74: 8907.56 | Q74: 10600 | R74: 9412 | S74: 11200 | T74: Mini | U74: PKW
L75: CITROËN DS 7 CROSSBACK E-TENSE 4x4 be chic | M75: 42260.5 | N75: 50290 | O75: Citroën DS 7 CROSSBACK PureTech 225 Automatik 225 | P75: 35159.66 | Q75: 41840 | R75: 7101 | S75: 8450 | T75: Geländewagen / SUV | U75: PKW
L76: CITROËN E-JUMPY M 50kWh | M76: 35250 | N76: 41947.5 | O76: CITROËN E-JUMPY M Blue HDi 120 90 kW (Control) | P76: 26500 | Q76: =ROUND(P76*1.19,2) -> 31535 | R76: =ROUND(M76-P76,0) -> 8750 | S76: =ROUND(N76-Q76,0) -> 10413 | T76: Utility (N1) | U76: NFZ | W76: 2020-09-10
L77: CITROËN E-JUMPY M 75kWh | M77: 40250 | N77: 47897.5 | O77: CITROËN E-JUMPY M Blue HDi 120 90 kW (Control) | P77: 26500 | Q77: =ROUND(P77*1.19,2) -> 31535 | R77: 13750 | S77: 16363 | T77: Utility (N1) | U77: NFZ | W77: 2020-09-10
L78: CITROËN ë-SpaceTourer 50kWh (alle Varianten) | M78: 43226.89 | N78: 51439.9991 | O78: CITROËN SpaceTourer M BlueHDi 145 (Business) | P78: =ROUND(39340/1.19,2) -> 33058.82 | Q78: =P78*1.19 -> 39339.9958 | R78: 10168 | S78: 12100 | T78: Großraum-Van | U78: PKW | W78: 2021-01-10
L79: CITROËN ë-SpaceTourer 75kWh (alle Varianten) | M79: 48268.91 | N79: 57440.0029 | O79: CITROËN SpaceTourer M BlueHDi 145 (Business) | P79: =ROUND(39340/1.19,2) -> 33058.82 | Q79: 39339.9958 | R79: 15210 | S79: 18100 | T79: Großraum-Van | U79: PKW | W79: 2021-01-10
L80: CITROËN E-Mehari | M80: 21235.29 | N80: 25270 | O80: Fiat 500c | P80: =ROUND(Q80/1.19,2) -> 12764.71 | Q80: 15190 | R80: 8471 | S80: 10080 | T80: Kleinwagen | U80: PKW
L81: CITROËN e-C4 Feel | M81: 29109.24 | N81: 34640 | O81: CITROËN C4 PureTech 130 6-Gang | P81: =23940/1.19 -> 20117.64706 | Q81: =ROUNDUP(P81*1.19,2) -> 23940 | R81: =ROUND(M81-P81,0) -> 8992 | S81: =ROUND(N81-Q81,0) -> 10700 | T81: Kompaktklasse | U81: PKW | W81: 2020-12-17
L82: CITROËN DS3 Crossback E-Tense | M82: 32260.5 | N82: 38390 | O82: DS3 Crossback PureTech 130 So Chic (N) | P82: =ROUND(Q82/1.19,2) -> 24781.51 | Q82: 29490 | R82: 7479 | S82: 8900 | T82: Kleinwagen | U82: PKW | W82: 2020-03-24
L83: e.GO-Life 20 | M83: 13361.34 | N83: 15899.99 | O83: Hyundai i10 | P83: =ROUND(Q83/1.19,2) -> 8394.96 | Q83: 9990 | R83: 4966 | S83: 5910 | T83: Mini | U83: PKW
L84: e.GO-Life 40 | M84: 14621.85 | N84: 17400 | O84: Hyundai i10 | P84: =ROUND(Q84/1.19,2) -> 8394.96 | Q84: 9990 | R84: 6227 | S84: 7410 | T84: Mini | U84: PKW
L85: e.GO-Life 60 | M85: 16722.69 | N85: 19900 | O85: Hyundai i10 | P85: =ROUND(Q85/1.19,2) -> 8394.96 | Q85: 9990 | R85: 8328 | S85: 9910 | T85: Mini | U85: PKW
L86: EVUM aCar (alle Varianten) | M86: 28990 | N86: 34498.1 | O86: Piaggio Porter Maxxi Chassis | P86: 16302.52 | Q86: =ROUND(P86*1.19,2) -> 19400 | R86: 12687 | S86: 15098 | T86: Utility (N1) | U86: NFZ | W86: 2020-09-10
L87: Fiat 500 Action 23,8 kWh | M87: 19798.32 | N87: 23560 | O87: Fiat 500 LOUNGE | P87: =15684.37/1.16 -> 13521.00862 | Q87: =ROUND(P87*1.19,2) -> 16090 | R87: 6277 | S87: 7470 | T87: Kleinwagen | U87: PKW | W87: 2020-12-17
L88: Fiat 500 Passion 42,0 kWh | M88: 23159.66 | N88: 27560 | O88: Fiat 500 LOUNGE | P88: =15684.37/1.16 -> 13521.00862 | Q88: =ROUND(P88*1.19,2) -> 16090 | R88: 9639 | S88: 11470 | T88: Kleinwagen | U88: PKW | W88: 2020-12-17
L89: Fiat E-Ducato 47 kWh (alle Versionen) | M89: 56000 | N89: 66640 | O89: Fiat Ducato 88 KW | P89: 30840 | Q89: =ROUND(P89*1.19,2) -> 36699.6 | R89: 25160 | S89: 29940 | T89: Utility (N1) | U89: NFZ | W89: 2020-09-10
L90: Fiat E-Ducato 79 kWh (alle Versionen) | M90: 73000 | N90: 86870 | O90: Fiat Ducato 88 KW | P90: 30840 | Q90: =ROUND(P90*1.19,2) -> 36699.6 | R90: 42160 | S90: 50170 | T90: Utility (N1) | U90: NFZ | W90: 2020-09-10
L91: Ford Kuga 2,5 L Duratec PHEV Titanium | M91: 33025.21 | N91: 39300 | O91: Ford Kuga 1,5 L EcoBoost Titanium | P91: =ROUND(Q91/1.19,2) -> 26806.72 | Q91: 31900 | R91: 6218 | S91: 7400 | T91: Geländewagen / SUV | U91: PKW
L92: Ford Tourneo Custom Bus (PHEV) | M92: 60420 | N92: 71899.8 | O92: Ford Tourneo Custom Bus Titanium (130 PS, Automatik) | P92: =ROUND(Q92/1.19,2) -> 42170 | Q92: 50182.3 | R92: 18250 | S92: 21718 | T92: Großraum-Van | U92: PKW | V92: Segment korrigiert | W92: 2020-09-10
L93: Ford e-Transit (alle N1/N2 -Versionen) | M93: 57920 | N93: 68924.8 | O93: Ford Transit (gleiche Nutzlast + Radstand) | P93: 37720 | Q93: =ROUND(P93*1.19,2) -> 44886.8 | R93: 20200 | S93: 24038 | T93: Utility | U93: NFZ | V93: Mittelwert aus allen verfügbaren Modellen mit vorhandenem VGL-Fzg. Bei 4,25t-Variante fehlt vergleichbarer Verbrenner | W93: 2022-03-01
L94: Ford Transit Custom Kastenwagen LKW (PHEV) | M94: nicht förderfähig gemäß FRL | N94: nicht förderfähig gemäß FRL | O94: Ford Transit Custom Kastenwagen LKW | T94: Utility (N1) | U94: NFZ
L95: Ford Transit Custom Kombi PKW (PHEV) | M95: 52805 | N95: 62837.95 | O95: Ford Transit Custom Kombi PKW (130 PS, Automatik) | P95: =ROUND(Q95/1.19,2) -> 35505 | Q95: 42250.95 | R95: =ROUND(M95-P95,0) -> 17300 | S95: =ROUND(N95-Q95,0) -> 20587 | T95: Großraum-Van | U95: PKW | W95: Segment korrigiert 10.9.20
L96: Ford Mustang Mach-E Standard Range 75,7 kWh (alle Varianten) | M96: 39411.76 | N96: 46900 | O96: Ford Mondeo 2,0l EcoBlue Limousine 110 kW | P96: =36554.62/1.16 -> 31512.60345 | Q96: =ROUND(P96*1.19,2) -> 37500 | R96: 7899 | S96: 9400 | T96: Geländewagen / SUV | U96: PKW | W96: 2020-12-17
L97: Ford Mustang Mach-E Extended Range 98,7 kWh (alle Varianten) | M97: 45777.31 | N97: 54475 | O97: Ford Mondeo 2,0l EcoBlue Limousine 110 kW | P97: =36554.62/1.16 -> 31512.60345 | Q97: =ROUND(P97*1.19,2) -> 37500 | R97: 14265 | S97: 16975 | T97: Geländewagen / SUV | U97: PKW | W97: 2020-12-17
L98: Honda e | M98: 28445.38 | N98: 33850 | O98: Honda Jazz Trend | P98: 14529.41 | Q98: 17290 | R98: 13916 | S98: 16560 | T98: Kleinwagen | U98: PKW | W98: 2020-03-24
L99: Hyundai IONIQ Elektro 28 kWh | M99: 27983.19 | N99: 33300 | O99: Hyundai i30 5T 1.4 T­GDI, 6­Gang, 103 kW | P99: 21378.15 | Q99: 25440 | R99: 6605 | S99: 7860 | T99: Kompaktklasse | U99: PKW
L100: Hyundai IONIQ Elektro 38,3 kWh | M100: 29705.88 | N100: 35350 | O100: Hyundai i30 5T 1.5 T­GDI, 6­Gang, 117 kW | P100: =ROUND(25139.83/1.16,2) -> 21672.27 | Q100: =ROUND(P100*1.19,2) -> 25790 | R100: 8034 | S100: 9560 | T100: Kompaktklasse | U100: PKW | W100: 2021-01-14
L101: Hyundai IONIQ Plug-in-Hybrid | M101: 25126.05 | N101: 29900 | O101: Hyundai i30 5T 1.4 T­GDI, 6­Gang, 103 kW | P101: 18907.56 | Q101: 22500 | R101: 6218 | S101: 7400 | T101: Kompaktklasse | U101: PKW
L102: Hyundai IONIQ 5 Elektro 58 kWh | M102: =ROUND(N102/1.19,2) -> 35210.08 | N102: 41900 | O102: Hyundai Tucson 48 V 1.6 T-GDI, 110 kW | P102: =ROUND(30500/1.19,2) -> 25630.25 | Q102: =ROUND(P102*1.19,2) -> 30500 | R102: 9580 | S102: 11400 | T102: Geländewagen / SUV | U102: PKW | W102: 2021-06-18
L103: Hyundai IONIQ 5 Elektro 72,6 kWh | M103: 37899.16 | N103: 45100 | O103: Hyundai Tucson 48 V 1.6 T-GDI, 110 kW | P103: =ROUND(30500/1.19,2) -> 25630.25 | Q103: =ROUND(P103*1.19,2) -> 30500 | R103: 12269 | S103: 14600 | T103: Geländewagen / SUV | U103: PKW | W103: 2021-06-18
L104: Hyundai Kona Elektro 39,2 kWh | M104: 29075.63 | N104: 34600 | O104: Hyundai Kona | P104: 17310.92 | Q104: 20600 | R104: 11765 | S104: 14000 | T104: SUV | U104: PKW
L105: Hyundai Kona Elektro 64,0 kWh | M105: 35168.07 | N105: 41850 | O105: Hyundai Kona 1.6 GDI, Select | P105: =ROUND(26900/1.19,2) -> 22605.04 | Q105: =ROUND(P105*1.19,2) -> 26900 | R105: 12563 | S105: 14950 | T105: Geländewagen / SUV | U105: PKW | W105: 2021-01-21
L106: ISEKI Goupil G4 (13,8 kWh) | M106: 33663.03 | N106: 40059 | O106: Piaggio Porter Chassis | P106: 13193.28 | Q106: 15700 | R106: 20470 | S106: 24359 | T106: Utility (N1) | U106: NFZ | W106: 2020-03-24
L107: ISEKI Goupil G4 (9 kWh) | M107: 29881.51 | N107: 35559 | O107: Piaggio Porter Chassis | P107: 13193.28 | Q107: 15700 | R107: 16688 | S107: 19859 | T107: Utility (N1) | U107: NFZ | W107: 2020-03-24
L108: ISEKI Goupil G5 (11,5 kWh) | M108: 34967.23 | N108: 41611 | O108: Piaggio Porter Chassis | P108: 13193.28 | Q108: 15700 | R108: 21774 | S108: 25911 | T108: Utility (N1) | U108: NFZ | W108: 2020-03-24
L109: ISEKI Goupil G5 (19,2 kWh) | M109: 44294.96 | N109: 52711 | O109: Piaggio Porter Chassis | P109: 13193.28 | Q109: 15700 | R109: 31102 | S109: 37011 | T109: Utility (N1) | U109: NFZ | W109: 2020-03-24
L110: Jaguar I-Pace | M110: 65420.17 | N110: 77850 | O110: Jaguar F-Pace 30t AWD | P110: 47689.08 | Q110: 56750 | R110: 17731 | S110: 21100 | T110: SUV | U110: PKW
L111: Jaguar E-Pace R-Dynamic S P300e | M111: 49025.21 | N111: 58340 | O111: Jaguar E-Pace R-Dynamic S D165 AWD | P111: 43134.46 | Q111: =ROUNDDOWN(P111*1.19,2) -> 51330 | R111: 5891 | S111: 7010 | T111: Geländewagen / SUV | U111: PKW | W111: 2020-12-18
L112: Jaguar F-Pace P400e | M112: 59474.14 | N112: 70774.23 | O112: Jaguar F-Pace D300 AWD | P112: 55232.76 | Q112: =ROUND(P112*1.19,2) -> 65726.98 | R112: 4241 | S112: 5047 | T112: Geländewagen / SUV | U112: PKW | W112: 2020-12-18
L113: Jeep Renegade 4xe 1.3I T-GDI I4 PHEV (alle Varianten) | M113: 35798.32 | N113: 42600 | O113: Jeep Renegade 1.3I T-GDI I4 | P113: 26638.66 | Q113: =ROUNDDOWN(P113*1.19,2) -> 31700 | R113: =ROUND(M113-P113,0) -> 9160 | S113: =ROUND(N113-Q113,0) -> 10900 | T113: Geländewagen / SUV | U113: PKW | W113: 2020-12-18
L114: Jeep Compass 4xe 1.3I T-GDI I4 PHEV (alle Varianten) | M114: 39159.66 | N114: 46600 | O114: Jeep Compass 1.3I T-GDI I4 | P114: 31428.57 | Q114: =ROUND(P114*1.19,2) -> 37400 | R114: =ROUND(M114-P114,0) -> 7731 | S114: =ROUND(N114-Q114,0) -> 9200 | T114: Geländewagen / SUV | U114: PKW | W114: 2020-12-18
L115: Kia Ceed SW PHEV (alle Versionen) | M115: 29410.92 | N115: 34999 | O115: Kia Ceed SW 1.4 T-GDI | P115: 21000 | Q115: 24990 | R115: 8411 | S115: 10009 | T115: Kompaktklasse | U115: PKW | W115: 2020-07-28
L116: Kia e-Niro 39,2 kWh | M116: 28815.13 | N116: 34290 | O116: Kia Ceed SW 1.4 T-GDI | P116: 19403.36 | Q116: 23090 | R116: 9412 | S116: 11200 | T116: Kompaktklasse | U116: PKW
L117: Kia e-Niro 64 kWh | M117: 32008.4 | N117: 38090 | O117: Kia Ceed SW 1.4 T-GDI | P117: 19403.36 | Q117: 23090 | R117: 12605 | S117: 15000 | T117: Kompaktklasse | U117: PKW
L118: Kia Niro Plug-in Hybrid | M118: 27521.01 | N118: 32750 | O118: Kia Ceed SW 1.6 GDI Dream-Team-Edition | P118: 18478.99 | Q118: 21990 | R118: 9042 | S118: 10760 | T118: Kompaktklasse | U118: PKW
L119: Kia Optima 2.0 GDI Plug-in Hybrid (Sportswagon) | M119: 34025.21 | N119: 40490 | O119: Kia Optima 2.0 CVVL | P119: 23352.94 | Q119: 27790 | R119: 10672 | S119: 12700 | T119: Mittelklasse | U119: PKW
L120: Kia Soul EV (27 bzw. 30 kWh) | M120: 24781.51 | N120: 29490 | O120: Kia Soul | P120: 14487.39 | Q120: 17240 | R120: 10294 | S120: 12250 | T120: Mini-Van | U120: PKW
L121: Kia e-Soul 39,2 kWh | M121: 28563.03 | N121: 33990 | O121: Kia Niro 1.6 GDI Hybrid | P121: =ROUND(26990/1.19,2) -> 22680.67 | Q121: =ROUND(P121*1.19,2) -> 26990 | R121: 5882 | S121: 7000 | T121: Mini-Van | U121: PKW | W121: 2021-01-21
L122: Kia e-Soul 64,0 kWh | M122: 31756.3 | N122: 37790 | O122: Kia Niro 1.6 GDI Hybrid | P122: 22680.67 | Q122: 26990 | R122: 9076 | S122: 10800 | T122: Mini-Van | U122: PKW | W122: 2021-01-21
L123: Kia XCeed PHEV (alle Versionen) | M123: 30251.26 | N123: 35999 | O123: Kia XCeed Vision | P123: 20075.63 | Q123: 23890 | R123: 10176 | S123: 12109 | T123: Kompaktklasse | U123: PKW | W123: 2020-05-28
L124: Kia Niro EV 64,8 kWh | M124: 39991.6 | N124: 47590 | O124: Kia Niro 1.6 GDI Hybrid Vision | P124: 28563.03 | Q124: 33990 | R124: =ROUND(M124-P124,0) -> 11429 | S124: =ROUND(N124-Q124,0) -> 13600 | T124: Geländewagen / SUV | U124: PKW | W124: 2022-09-20
L125: Kia EV6 (alle Versionen) | M125: 37806.72 | N125: 44990 | O125: Kia Sportage Edition 7 1,6 T GDI | P125: 23352.94 | Q125: 27790 | R125: 14454 | S125: 17200 | T125: Geländewagen / SUV | U125: PKW | W125: 2022-09-20
L126: Land Rover Range Rover P400e Plug-in Hybrid | M126: 99747.9 | N126: 118700 | O126: Land Rover Range Rover 3.0 TDV6 | P126: 91008.4 | Q126: 108300 | R126: 8740 | S126: 10400 | T126: Geländewagen / SUV | U126: PKW
L127: Land Rover Range Rover Sport P400e Plug-in Hybrid | M127: 73193.28 | N127: 87100 | O127: Land Rover Range Rover Sport 3.0 TDV6 | P127: 60924.37 | Q127: 72500 | R127: 12269 | S127: 14600 | T127: Geländewagen / SUV | U127: PKW
L128: LEVC TX5 (alle Versionen) | M128: 61422.5 | N128: 73092.78 | O128: Opel Vivaro Combi S 88 kW | P128: 30610 | Q128: =ROUND(P128*1.19,2) -> 36425.9 | R128: 30813 | S128: 36667 | T128: Großraum-Van | U128: PKW | W128: 2021-02-02
L129: LEVC VN5 (alle Versionen) | M129: 52450 | N129: 62415.5 | O129: Opel Vivaro Cargo S 88kW | P129: 27470 | Q129: =ROUND(P129*1.19,2) -> 32689.3 | R129: =ROUND(M129-P129,0) -> 24980 | S129: =ROUND(N129-Q129,0) -> 29726 | T129: Utility (N1) | U129: NFZ | W129: 2021-02-02
L130: Mazda MX-30 e-SKYACTIV | M130: 28142.86 | N130: 33490 | O130: CX-30 SKYACTIV-G 2.0 M Hybrid | P130: 20832.76 | Q130: =ROUND(P130*1.19,2) -> 24790.98 | R130: =ROUND(M130-P130,0) -> 7310 | S130: =ROUND(N130-Q130,0) -> 8699 | T130: Geländewagen / SUV | U130: PKW | W130: 2020-12-17
L131: MAN e-TGE | O131: wie VW e-Crafter | R131: =R256 -> 40620 | S131: =S256 -> 48338 | T131: =T256 -> Utility (N1) | U131: NFZ | W131: 2021-02-23
L132: Mercedes Benz A 250 e | M132: 31045 | N132: 36943.55 | O132: Mercedes Benz A 200 | P132: =ROUND(Q132/1.19,2) -> 25845 | Q132: 30755.55 | R132: 5200 | S132: 6188 | T132: Kompaktklasse | U132: PKW
L133: Mercedes Benz A 250 e (Limousine) | M133: 31345 | N133: 37300.55 | O133: Mercedes Benz A 200 (Limousine) | P133: 26145 | Q133: 31112.55 | R133: 5200 | S133: 6188 | T133: Kompaktklasse | U133: PKW
L134: Mercedes Benz C 300 (T) e (W205/S205) | M134: 39265 | N134: 46725.35 | O134: Mercedes Benz C 300 | P134: 37360 | Q134: 44458.4 | R134: =ROUND(M134-P134,0) -> 1905 | S134: 2267 | T134: Mittelklasse | U134: PKW | W134: 2021-06-22
L135: Mercedes Benz C 300 (T) de (W205/S205) | M135: 41265 | N135: 49105.35 | O135: Mercedes Benz C 300 d | P135: 39065 | Q135: 46487.35 | R135: 2200 | S135: 2618 | T135: Mittelklasse | U135: PKW | W135: 2021-06-22
L136: Mercedes Benz E 300 (T) e | M136: 46300 | N136: 55097 | O136: Mercedes Benz E 300 | P136: =ROUND(Q136/1.19,2) -> 44600 | Q136: 53074 | R136: 1700 | S136: 2023 | T136: Obere Mittelklasse | U136: PKW
L137: Mercedes Benz E 300 (T) de | M137: 49100 | N137: 58429 | O137: Mercedes Benz E 300 d (T-Modell) | P137: 46735 | Q137: 55614.65 | R137: 2365 | S137: 2814 | T137: Obere Mittelklasse | U137: PKW
L138: Mercedes Benz E 350 e | M138: 49950 | N138: 59440.5 | O138: Mercedes Benz E 300 d | P138: 43340 | Q138: 51574.6 | R138: =ROUND(M138-P138,0) -> 6610 | S138: =ROUND(N138-Q138,0) -> 7866 | T138: Obere Mittelklasse | U138: PKW
L139: Mercedes Benz EQA 250 | M139: 39950 | N139: 47540.5 | O139: Mercedes Benz GLA 180 | P139: 30920 | Q139: =ROUND(P139*1.19,2) -> 36794.8 | R139: =ROUND(M139-P139,0) -> 9030 | S139: =ROUND(N139-Q139,0) -> 10746 | T139: Geländewagen / SUV | U139: PKW | W139: 2021-06-15
L140: Mercedes Benz EQC 400 4MATIC | M140: 59900 | N140: 71281 | O140: Mercedes Benz GLC 300 4MATIC | P140: 45030 | Q140: 53585.7 | R140: 14870 | S140: 17695 | T140: Geländewagen / SUV | U140: PKW
L141: Mercedes Benz EQV 300 (alle Varianten) | M141: 60889 | N141: 72457.91 | O141: Mercedes Benz V220D Lang | P141: 44280 | Q141: =ROUND(P141*1.19,2) -> 52693.2 | R141: =ROUND(M141-P141,0) -> 16609 | S141: =ROUND(N141-Q141,0) -> 19765 | T141: Großraum-Van | U141: PKW | W141: 2020-09-10
L142: Mercedes Benz eSprinter 35 kWh (alle Varianten) | M142: 53900 | N142: 64141 | O142: Mercedes Benz Sprinter Kasten 211 CDI | P142: 32485 | Q142: =ROUND(P142*1.19,2) -> 38657.15 | R142: =ROUND(M142-P142,0) -> 21415 | S142: 25484 | T142: Utility (N1) | U142: NFZ | W142: 2020-09-10
L143: Mercedes Benz eSprinter 47 kWh (alle Varianten) | M143: 61273 | N143: 72914.87 | O143: Mercedes Benz Sprinter Kasten 211 CDI | P143: 32485 | Q143: =ROUND(P143*1.19,2) -> 38657.15 | R143: 28788 | S143: 34258 | T143: Utility (N1) | U143: NFZ | W143: 2020-09-10
L144: Mercedes Benz eVito (alle Varianten) | M144: 39990 | N144: 47588.1 | O144: Mercedes Benz Vito Kastenwagen Worker | P144: =ROUND(Q144/1.19,2) -> 18490 | Q144: 22003.1 | R144: 21500 | S144: 25585 | T144: Utility (N1) | U144: NFZ
L145: Mercedes Benz eVito Tourer (alle Varianten) | M145: 55232 | N145: 65726.08 | O145: MB Vito Tourer, Base, Lang | P145: 30040 | Q145: =ROUND(P145*1.19,2) -> 35747.6 | R145: =ROUND(M145-P145,0) -> 25192 | S145: =ROUND(N145-Q145,0) -> 29978 | T145: Großraum-Van | U145: PKW | W145: 2020-09-10
L146: Mercedes Benz GLC 350e 4MATIC (Coupé) | M146: nicht förderfähig gemäß FRL | N146: nicht förderfähig gemäß FRL | P146: 0 | Q146: 0 | R146: 0 | S146: 0 | T146: Geländewagen / SUV | U146: PKW
L147: Mercedes Benz GLE 500e 4MATIC | M147: nicht förderfähig gemäß FRL | N147: nicht förderfähig gemäß FRL | P147: 0 | Q147: 0 | R147: 0 | S147: 0 | T147: Geländewagen / SUV | U147: PKW
L148: Mercedes Benz S 500e Langversion | M148: nicht förderfähig gemäß FRL | N148: nicht förderfähig gemäß FRL | P148: 0 | Q148: 0 | R148: 0 | S148: 0 | T148: Oberklasse | U148: PKW
L149: Mercedes Benz S 560e Langversion | M149: nicht förderfähig gemäß FRL | N149: nicht förderfähig gemäß FRL | P149: 0 | Q149: 0 | R149: 0 | S149: 0 | T149: Oberklasse | U149: PKW
L150: Mercedes Benz GLA250e | M150: 38810 | N150: 46183.9 | O150: GLA200d | P150: 32890 | Q150: =ROUND(P150*1.19,2) -> 39139.1 | R150: =ROUND(M150-P150,0) -> 5920 | S150: 7045 | T150: Geländewagen / SUV | U150: PKW | W150: 2020-12-17
L151: Mercedes Benz GLC 300 (d)e 4MATIC (ab 2019, MOPF, alle Varianten) | M151: 49950 | N151: 59440.5 | O151: GLC 220 d 4MATIC | P151: 42435 | Q151: 50497.65 | R151: 7515 | S151: 8943 | T151: Geländewagen / SUV | U151: PKW | W151: 2020-12-17
L152: Mercedes Benz GLE 350 (d)e 4MATIC (V 167, C167, alle Varianten) | M152: 64980 | N152: 77326.2 | O152: GLE 300 d 4MATIC | P152: 58930 | Q152: 70126.7 | R152: 6050 | S152: 7200 | T152: Geländewagen / SUV | U152: PKW | W152: 2020-12-17
L153: Mercedes Benz smart forfour electric drive (alle Versionen) | M153: 18991.6 | N153: 22600 | O153: Mercedes Benz smart forfour 52 kW | P153: 10861.34 | Q153: 12925 | R153: =ROUND(M153-P153,0) -> 8130 | S153: 9675 | T153: Mini | U153: PKW
L154: Mercedes Benz smart fortwo ED (alle Versionen) | M154: 18436.97 | N154: 21939.99 | O154: Mercedes Benz smart 52 kW | P154: 10306.72 | Q154: 12265 | R154: 8130 | S154: 9675 | T154: Kleinwagen | U154: PKW
L155: MG ZS EV (alle Versionen) | M155: 26882.35 | N155: 31990 | O155: Peugeot 2008 PureTech 130 Active | P155: =ROUND(Q155/1.19,2) -> 19537.82 | Q155: 23250 | R155: 7345 | S155: 8740 | T155: Kompaktklasse | U155: PKW | W155: 2021-06-22
L156: Mini Cooper SE 3-Türer Trim S | M156: 27310.92 | N156: 32500 | O156: Mini Cooper S 3-Türer | P156: 24327.73 | Q156: 28950 | R156: 2983 | S156: 3550 | T156: Kleinwagen | U156: PKW
L157: Mini Cooper SE Contryman ALL4 Automatik | M157: 31512.61 | N157: 37500 | O157: Mini Countrymen Cooper S | P157: 28067.23 | Q157: 33400 | R157: 3445 | S157: 4100 | T157: Kleinwagen | U157: PKW
L158: Mitsubishi PLUG-IN HYBRID OUTLANDER | M158: 33605.04 | N158: 39990 | O158: Mitsubishi Outlander | P158: 21000 | Q158: 24990 | R158: 12605 | S158: 15000 | T158: Kompaktklasse | U158: PKW
L159: Nissan e-NV200 Evalia 5-Sitzer | M159: 34498.32 | N159: 41053 | O159: Nissan NV200 Evalia 5-Sitzer | P159: 19571.43 | Q159: 23290 | R159: 14927 | S159: 17763 | T159: Großraum-Van | U159: PKW
L160: Nissan e-NV200 Evalia 7-Sitzer | M160: 35168.32 | N160: 41850.3 | O160: Nissan NV200 Evalia 7-Sitzer | P160: 20306.72 | Q160: 24165 | R160: 14862 | S160: 17685 | T160: Großraum-Van | U160: PKW
L161: Nissan e-NV200 Kasten | M161: 28660 | N161: 34105.4 | O161: Nissan NV200 Kasten | P161: 15150 | Q161: 18028.5 | R161: 13510 | S161: 16077 | T161: Utility (N1) | U161: NFZ
L162: Nissan Leaf ZE1 (40 kwh) | M162: 26848.74 | N162: 31950 | O162: Nissan Pulsar Visia | P162: 15537.82 | Q162: 18490 | R162: =ROUND(M162-P162,0) -> 11311 | S162: =ROUND(N162-Q162,0) -> 13460 | T162: Kompaktklasse | U162: PKW
L163: Nissan Leaf ZE1 e+ (62 kwh) | M163: 37563.03 | N163: 44700 | O163: Nissan Pulsar Visia | P163: 15537.82 | Q163: 18490 | R163: 22025 | S163: 26210 | T163: Kompaktklasse | U163: PKW
L164: Opel Ampera-E Plus | M164: 36126.05 | N164: 42990 | O164: Opel Astra 1.4 Direct Injection Turbo (Start/Stop) | P164: 20731.09 | Q164: 24670 | R164: =ROUND(M164-P164,0) -> 15395 | S164: =ROUND(N164-Q164,0) -> 18320 | T164: Kleinwagen | U164: PKW
L165: Opel Corsa-e Edition | M165: 25756.3 | N165: 30650 | O165: Opel Corsa Edition (74 kW) | P165: 14731.09 | Q165: 17530 | R165: 11025 | S165: 13120 | T165: Kleinwagen | U165: PKW
L166: Opel Combo-e Life (alle Versionen) | M166: 32016.81 | N166: 38100.0039 | O166: Opel Combo Life Edition 81 kW | P166: =ROUND(25180/1.19,2) -> 21159.66 | Q166: =P166*1.19 -> 25179.9954 | R166: =ROUND(M166-P166,0) -> 10857 | S166: =ROUND(N166-Q166,0) -> 12920 | T166: Großraum-Van | U166: PKW | W166: 2021-06-23
L167: Opel Grandland X (133 kW, alle Versionen) | M167: 37533.61 | N167: 44665 | O167: Opel Grandland X 1,6 Direct Injection Turbo (133 kW) | P167: 30504.2 | Q167: 36300 | R167: =ROUND(M167-P167,0) -> 7029 | S167: 8365 | T167: Geländewagen / SUV | U167: PKW | W167: 2020-04-17
L168: Opel Mokka-E | M168: =ROUND(N168/1.19,2) -> 27722.69 | N168: 32990.0011 | O168: Opel Mokka 1.2 74 kW | P168: =ROUND(19486.05/1.16,2) -> 16798.32 | Q168: =P168*1.19 -> 19990.0008 | R168: 10924 | S168: 13000 | T168: Kompaktklasse | U168: PKW | W168: 2020-12-18
L169: Opel Zafira-E Life 50 kWh (alle Versionen) | M169: 48193.28 | N169: 57350.0032 | O169: Opel Zafira Life M 88 kW | P169: =ROUND(43602.35/1.16,2) -> 37588.23 | Q169: 44729.9937 | R169: 10605 | S169: 12620 | T169: Großraum-Van | U169: PKW | W169: 2020-12-18
L170: Opel Zafira-E Life 75 kWh (alle Versionen) | M170: 53235.29 | N170: 63349.9951 | O170: Opel Zafira Life M 88 kW | P170: =ROUND(43602.35/1.16,2) -> 37588.23 | Q170: 44729.9937 | R170: 15647 | S170: 18620 | T170: Großraum-Van | U170: PKW | W170: 2020-12-18
L171: Opel Vivaro-E Cargo 50 kWh (alle Versionen) | M171: 36240 | N171: 43125.6 | O171: Opel Vivaro Cargo M 90 kW | P171: 28280 | Q171: 33653.2 | R171: 7960 | S171: 9472 | T171: Utility | U171: NFZ | W171: 2020-12-18
L172: Opel Vivaro-E Cargo 75 kWh (alle Versionen) | M172: 41240 | N172: 49075.6 | O172: Opel Vivaro Cargo M 90 kW | P172: 28280 | Q172: 33653.2 | R172: 12960 | S172: 15422 | T172: Utility | U172: NFZ | W172: 2020-12-18
L173: Opel Vivaro-E Kombi 50 kWh (alle Versionen) | M173: 42250 | N173: 50277.5 | O173: Opel Kombi 90 kW | P173: 34410 | Q173: 40947.9 | R173: =ROUND(M173-P173,0) -> 7840 | S173: 9330 | T173: Großraum-Van | U173: PKW | W173: 2021-01-11
L174: Opel Vivaro-E Kombi 75 kWh (alle Versionen) | M174: 47250 | N174: 56227.5 | O174: Opel Kombi 90 kW | P174: 34410 | Q174: 40947.9 | R174: =ROUND(M174-P174,0) -> 12840 | S174: 15280 | T174: Großraum-Van | U174: PKW | W174: 2021-01-11
L175: Peugeot 508 SW GT Hybrid 225 e-EAT8 | M175: 43361.34 | N175: 51600 | O175: Peugeot 508 SW GT PureTech 225 EAT8 | P175: 39915.97 | Q175: 47500 | R175: 3445 | S175: 4100 | T175: Mittelklasse | U175: PKW
L176: Peugeot 3008 Hybrid 225/300 (alle Versionen) | M176: 39579.83 | N176: 47100 | O176: Peugeot 3008 PureTech 180 EAT8 | P176: =ROUND(39966.39/1.16,2) -> 34453.78 | Q176: =ROUND(P176*1.19,2) -> 41000 | R176: 5126 | S176: 6100 | T176: Kompaktklasse | U176: PKW | W176: 2020-12-18
L177: Peugeot e-2008 (alle Versionen) | M177: 29621.85 | N177: 35250 | O177: Peugeot 2008 PureTech 130 Active | P177: 19537.82 | Q177: 23250 | R177: 10084 | S177: 12000 | T177: Geländewagen / SUV | U177: PKW | W177: 2020-03-24
L178: Peugeot e-208 Allure | M178: 27058.82 | N178: 32200 | O178: Peugeot 208 Allure | P178: 17142.86 | Q178: 20400 | R178: 9916 | S178: 11800 | T178: Kleinwagen | U178: PKW
L179: Peugeot E-Expert 50kWh (alle Versionen) | M179: 35250 | N179: 41947.5 | O179: Peugeot Expert L2 Blue HDi 120 90 kW (Pro) | P179: 26500 | Q179: =ROUND(P179*1.19,2) -> 31535 | R179: =ROUND(M179-P179,0) -> 8750 | S179: 10413 | T179: Utility (N1) | U179: NFZ | W179: 2020-09-10
L180: Peugeot E-Expert 75kWh (alle Versionen) | M180: 40250 | N180: 47897.5 | O180: Peugeot Expert L2 Blue HDi 120 90 kW (Pro) | P180: 26500 | Q180: =ROUND(P180*1.19,2) -> 31535 | R180: 13750 | S180: 16363 | T180: Utility (N1) | U180: NFZ | W180: 2020-09-10
L181: Peugeot E-Expert Kombi 50kWh (alle Versionen) | M181: 41714.29 | N181: 49640 | O181: Peugeot Expert L2 BlueHDi 120 88 kW | P181: =ROUND(34205.38/1.16,2) -> 29487.4 | Q181: =ROUNDDOWN(P181*1.19,2) -> 35090 | R181: 12227 | S181: 14550 | T181: Großraum-Van | U181: PKW | W181: 2021-01-14
L182: Peugeot E-Traveller 50kWh (alle Versionen) | M182: 46974.79 | N182: 55900 | O182: Peugeot Expert L2 BlueHDi 120 88 kW | P182: =ROUND(40307.56/1.16,2) -> 34747.9 | Q182: =ROUNDDOWN(P182*1.19,2) -> 41350 | R182: 12227 | S182: 14550 | T182: Großraum-Van | U182: PKW | W182: 2021-01-14
L183: Peugeot e-Rifter (alle Versionen) | M183: 31588.24 | N183: 37590 | O183: Peugeot e-Rifter PureTech 110 81 kW | P183: =ROUND(25140/1.19,2) -> 21126.05 | Q183: =P183*1.19 -> 25139.9995 | R183: 10462 | S183: 12450 | T183: Großraum-Van | U183: PKW | W183: 2021-06-22
L184: Peugeot iOn | M184: 18319.33 | N184: 21800 | O184: Peugeot 108 5-Türer Vti 68 | P184: =ROUND(Q184/1.19,2) -> 9873.95 | Q184: 11750 | R184: 8445 | S184: 10050 | T184: Utility (N1) | U184: NFZ
L185: Peugeot Partner electrique (L1) | M185: 21290 | N185: 25335.1 | O185: Peugeot Partner (L1) | P185: 14600 | Q185: 17374 | R185: 6690 | S185: 7961 | T185: Utility (N1) | U185: NFZ
L186: Peugeot Partner electrique (L2) | M186: 22340 | N186: 26584.6 | O186: Peugeot Partner (L2) | P186: 15450 | Q186: 18385.5 | R186: 6890 | S186: 8199 | T186: Utility (N1) | U186: NFZ
L187: Piaggio Porter Elektro (alle Versionen) | M187: 22510.6 | N187: 26787.61 | O187: Piaggio Porter (alle Versionen) | P187: 12186.89 | Q187: 14502.4 | R187: 10324 | S187: 12285 | T187: Utility (N1) | U187: NFZ
L188: Polaris Ranger EV | M188: 13823.53 | N188: 16450 | O188: Polaris Ranger 570 | P188: 11420.17 | Q188: 13590 | R188: 2403 | S188: 2860 | T188: Utility (N1) | U188: NFZ | W188: 2019-06-27
L189: Polestar 2 | M189: 50336.13 | N189: 59900 | O189: Volvo S60 T6 AWD | P189: 43865.55 | Q189: 52200 | R189: 6471 | S189: 7700 | T189: Mittelklasse | U189: PKW
L190: Porsche Cayenne S E-Hybrid | M190: nicht förderfähig gemäß FRL | N190: nicht förderfähig gemäß FRL | P190: 0 | Q190: 0 | R190: 0 | S190: 0 | T190: Oberklasse | U190: PKW
L191: Porsche Panamera 4 E-Hybrid (alle Versionen) | M191: nicht förderfähig gemäß FRL | N191: nicht förderfähig gemäß FRL | P191: 0 | Q191: 0 | R191: 0 | S191: 0 | T191: Oberklasse | U191: PKW
L192: Porsche Panamera Turbo S E-Hybrid (alle Versionen) | M192: nicht förderfähig gemäß FRL | N192: nicht förderfähig gemäß FRL | P192: 0 | Q192: 0 | R192: 0 | S192: 0 | T192: Oberklasse | U192: PKW
L193: Porsche Taycan 4S | M193: 88745.38 | N193: 105607 | O193: Porsche Panamera 4 | P193: 82145.38 | Q193: 97753 | R193: =ROUND(M193-P193,0) -> 6600 | S193: =ROUND(N193-Q193,0) -> 7854 | T193: Oberklasse | U193: PKW
L194: Renault Kangoo Maxi Z.E. 33 2-Sitzer | M194: 31120 | N194: 37032.8 | O194: Renault Kangoo Rapid Maxi | P194: 18120 | Q194: 21562.8 | R194: 13000 | S194: 15470 | T194: Utility (N1) | U194: NFZ
L195: Renault Kangoo Maxi Z.E. 33 2-Sitzer, Batterie zur Miete | M195: 22020 | N195: 26203.8 | O195: Renault Kangoo Rapid Maxi | P195: 18120 | Q195: 21562.8 | R195: 3900 | S195: 4641 | T195: Utility (N1) | U195: NFZ
L196: Renault Kangoo Maxi Z.E. 33 5-Sitzer | M196: 31920 | N196: 37984.8 | O196: Renault Kangoo Rapid Maxi (Combi) | P196: 19120 | Q196: 22752.8 | R196: 12800 | S196: 15232 | T196: Utility (N1) | U196: NFZ
L197: Renault Kangoo Maxi Z.E. 33 5-Sitzer, Batterie zur Miete | M197: 22820 | N197: 27155.8 | O197: Renault Kangoo Rapid Maxi (Combi) | P197: 19120 | Q197: 22752.8 | R197: 3700 | S197: 4403 | T197: Utility (N1) | U197: NFZ
L198: Renault Kangoo Z.E. 33 2-Sitzer | M198: 29920 | N198: 35604.8 | O198: Renault Kangoo Rapid Compact (2-Sitzer) | P198: 16570 | Q198: 19718.3 | R198: 13350 | S198: 15887 | T198: Utility (N1) | U198: NFZ
L199: Renault Kangoo Z.E. 33 2-Sitzer, Batterie zur Miete | M199: 20820 | N199: 24775.8 | O199: Renault Kangoo Rapid Compact (2-Sitzer) | P199: 16570 | Q199: 19718.3 | R199: 4250 | S199: 5058 | T199: Utility (N1) | U199: NFZ
L200: Renault Kangoo Z.E. 33 Doppelkabine | M200: 32320 | N200: 38460.8 | O200: Renault Kangoo Rapid Maxi (Doppelkabine) | P200: 19420 | Q200: 23109.8 | R200: 12900 | S200: 15351 | T200: Utility (N1) | U200: NFZ
L201: Renault Kangoo Z.E. 33 Doppelkabine, Batterie zur Miete | M201: 23220 | N201: 27631.8 | O201: Renault Kangoo Rapid Maxi (Doppelkabine) | P201: 19420 | Q201: 23109.8 | R201: 3800 | S201: 4522 | T201: Utility (N1) | U201: NFZ
L202: Renault Master Z.E. Kasten (alle Versionen) | M202: 64000 | N202: 76160 | O202: Renault Master Kasten (alle Versionen) | P202: 31560 | Q202: 37556.4 | R202: 32440 | S202: 38604 | T202: Utility (N1) | U202: NFZ
... 94 more rows

Sheet LKW, Busse, Sonderfahrzeuge
A1: Ermittlung der förderfähigen Ausgaben für LKW, Busse und Sonder-Fahrzeuge | I1: FKZ:
A2: Hierfür müssen Sie entsprechende Angebote für das E-Fahrzeug und ein Referenzfahrzeug eingeholt haben. Diese Angebote sind beizufügen. | I2: =Fahrzeuge!I2 -> 03EMI3
A3: =IF(Fahrzeuge!C1="","Bitte geben Sie auf der Registerkarte 'Fahrzeuge' an, ob Sie zum Vorsteuerabzug berechtigt sind","") -> Bitte geben Sie auf der Registerkarte 'Fahrzeuge' an, ob Sie zum Vorsteuerabzug berechtigt sind
A5: Pos. | B5: Typ E-Fahrzeug | C5: =IF(Fahrzeuge!$C$1="nein","Bruttopreis E-Fahrzeug laut beigefügtem Angebot *",IF(Fahrzeuge!$C$1="ja","Nettopreis E-Fahrzeug laut beigefügtem Angebot *","Bitte wählen sie aus, ob sie zum Vorsteuerabzug berechtigt sind!")) -> Bitte wählen sie aus, ob sie zum Vorsteuerabzug berechtigt sind! | D5: Typ Referenzfahrzeug | E5: =IF(Fahrzeuge!$C$1="nein","Bruttopreis Referenzfahrzeug laut beigefügtem Angebot *",IF(Fahrzeuge!$C$1="ja","Nettopreis Referenzfahrzeug laut beigefügtem Angebot *","Bitte wählen sie aus, ob sie zum Vorsteuerabzug berechtigt sind!")) -> Bitte wählen sie aus, ob sie zum Vorsteuerabzug berechtigt sind! | F5: =IF(Fahrzeuge!$C$1="nein","Förderfähige Ausgaben pro Fahrzeug (brutto)",IF(Fahrzeuge!$C$1="ja","Förderfähige Ausgaben pro Fahrzeug (netto)","Bitte wählen sie aus, ob sie zum Vorsteuerabzug berechtigt sind!")) -> Bitte wählen sie aus, ob sie zum Vorsteuerabzug berechtigt sind! | G5: Anzahl zu beschaffender Fahrzeuge des Typs | H5: Förderfähige Ausgaben | I5: Korrekturfeld PtJ
A6: 1 | F6: =IF(B6>"",IF($A$3="",C6-E6,$F$5),"") ->  | H6: =IF(B6>"",F6*G6,"") -> 
A8: 2 | F8: =IF(B8>"",IF($A$3="",C8-E8,$F$5),"") ->  | H8: =IF(B8>"",F8*G8,"") -> 
A10: 3
A12: 4
A14: 5
A16: 6
A18: 7
A20: 8
A22: 9
A24: 10
A26: Summe | H26: =SUM(H6:H24) -> 0

Sheet Ladeinfrastruktur
A1: Ermittlung der förderfähigen Pauschalen für Ladeinfrastruktur | E1: FKZ: | F1: =Fahrzeuge!I2 -> 03EMI3
A2: =IF(Fahrzeuge!C1="","Bitte geben Sie auf der Registerkarte 'Fahrzeuge' an, ob Sie zum Vorsteuerabzug berechtigt sind","") -> Bitte geben Sie auf der Registerkarte 'Fahrzeuge' an, ob Sie zum Vorsteuerabzug berechtigt sind
A4: Pos. | B4: Typ Ladeinfrastruktur (LIS)* [Auswahlbox] | C4: =IF(Fahrzeuge!$C$1="nein","Förderfähige Ausgaben pro Ladesäule (brutto)",IF(Fahrzeuge!$C$1="ja","Förderfähige Ausgaben pro Ladesäule (netto)","Bitte wählen sie aus, ob sie zum Vorsteuerabzug berechtigt sind!")) -> Bitte wählen sie aus, ob sie zum Vorsteuerabzug berechtigt sind! | D4: Anzahl zu beschaffender Ladesäulen des Typs | E4: Förderfähige Ausgaben | F4: Korrekturfeld PtJ | I4: Typ Ladeinfrastruktur | J4: Ausgabenpauschale netto | K4: Ausgabenpauschale netto
A5: 1 | C5: =IF($B5>0,IF(Fahrzeuge!$C$1="nein",VLOOKUP($B5,$I$5:$K$14,3,0),IF(Fahrzeuge!$C$1="ja",VLOOKUP($B5,$I$5:$K$14,2,0),"Bitte wählen sie aus, ob sie zum Vorsteuerabzug berechtigt sind!")),"") ->  | E5: =IF(D5>0,C5*D5,"") ->  | I5: öff. zugängl. [AC] ≥ 3,7 kW (1 Ladepunkt) | J5: 2000 | K5: =J5*1.19 -> 2380
I6: öff. zugängl. [AC] ≥ 11 kW (min. 2 Ladepunkte) | J6: 5000 | K6: =J6*1.19 -> 5950
A7: 2 | C7: =IF($B7>0,IF(Fahrzeuge!$C$1="nein",VLOOKUP($B7,$I$5:$K$14,3,0),IF(Fahrzeuge!$C$1="ja",VLOOKUP($B7,$I$5:$K$14,2,0),"Bitte wählen sie aus, ob sie zum Vorsteuerabzug berechtigt sind!")),"") ->  | E7: =IF(D7>0,C7*D7,"") ->  | I7: öff. zugängl. [DC] ≤ 50 kW | J7: 20000 | K7: 23800
I8: öff. zugängl. [DC] 51 kW-149 kW | J8: 35000 | K8: 41650
A9: 3 | C9: =IF($B9>0,IF(Fahrzeuge!$C$1="nein",VLOOKUP($B9,$I$5:$K$14,3,0),IF(Fahrzeuge!$C$1="ja",VLOOKUP($B9,$I$5:$K$14,2,0),"Bitte wählen sie aus, ob sie zum Vorsteuerabzug berechtigt sind!")),"") ->  | E9: =IF(D9>0,C9*D9,"") ->  | I9: öff. zugängl. [DC] ≥ 150 kW | J9: 50000 | K9: 59500
I10: nicht öff. zugängl. [AC] ≥ 3,7 kW (1 Ladepunkt) | J10: 900 | K10: 1071
A11: 4 | C11: =IF($B11>0,IF(Fahrzeuge!$C$1="nein",VLOOKUP($B11,$I$5:$K$14,3,0),IF(Fahrzeuge!$C$1="ja",VLOOKUP($B11,$I$5:$K$14,2,0),"Bitte wählen sie aus, ob sie zum Vorsteuerabzug berechtigt sind!")),"") ->  | E11: =IF(D11>0,C11*D11,"") ->  | I11: nicht öff. zugängl. [AC] ≥ 11 kW (min. 2 Ladepunkte) | J11: 3000 | K11: 3570
I12: nicht öff. zugängl. [DC] ≤ 50 kW | J12: 20000 | K12: 23800
A13: 5 | C13: =IF($B13>0,IF(Fahrzeuge!$C$1="nein",VLOOKUP($B13,$I$5:$K$14,3,0),IF(Fahrzeuge!$C$1="ja",VLOOKUP($B13,$I$5:$K$14,2,0),"Bitte wählen sie aus, ob sie zum Vorsteuerabzug berechtigt sind!")),"") ->  | E13: =IF(D13>0,C13*D13,"") ->  | I13: nicht öff. zugängl. [DC] 51 kW-149 kW | J13: 35000 | K13: 41650
I14: nicht öff. zugängl. [DC] ≥ 150 kW | J14: 50000 | K14: 59500
A15: 6 | C15: =IF($B15>0,IF(Fahrzeuge!$C$1="nein",VLOOKUP($B15,$I$5:$K$14,3,0),IF(Fahrzeuge!$C$1="ja",VLOOKUP($B15,$I$5:$K$14,2,0),"Bitte wählen sie aus, ob sie zum Vorsteuerabzug berechtigt sind!")),"") ->  | E15: =IF(D15>0,C15*D15,"") -> 
A17: 7 | C17: =IF($B17>0,IF(Fahrzeuge!$C$1="nein",VLOOKUP($B17,$I$5:$K$14,3,0),IF(Fahrzeuge!$C$1="ja",VLOOKUP($B17,$I$5:$K$14,2,0),"Bitte wählen sie aus, ob sie zum Vorsteuerabzug berechtigt sind!")),"") ->  | E17: =IF(D17>0,C17*D17,"") -> 
A19: 8 | C19: =IF($B19>0,IF(Fahrzeuge!$C$1="nein",VLOOKUP($B19,$I$5:$K$14,3,0),IF(Fahrzeuge!$C$1="ja",VLOOKUP($B19,$I$5:$K$14,2,0),"Bitte wählen sie aus, ob sie zum Vorsteuerabzug berechtigt sind!")),"") ->  | E19: =IF(D19>0,C19*D19,"") -> 
A21: 9 | C21: =IF($B21>0,IF(Fahrzeuge!$C$1="nein",VLOOKUP($B21,$I$5:$K$14,3,0),IF(Fahrzeuge!$C$1="ja",VLOOKUP($B21,$I$5:$K$14,2,0),"Bitte wählen sie aus, ob sie zum Vorsteuerabzug berechtigt sind!")),"") ->  | E21: =IF(D21>0,C21*D21,"") -> 
A23: 10 | C23: =IF($B23>0,IF(Fahrzeuge!$C$1="nein",VLOOKUP($B23,$I$5:$K$14,3,0),IF(Fahrzeuge!$C$1="ja",VLOOKUP($B23,$I$5:$K$14,2,0),"Bitte wählen sie aus, ob sie zum Vorsteuerabzug berechtigt sind!")),"") ->  | E23: =IF(D23>0,C23*D23,"") -> 
A25: Summe | E25: =SUM(E5:E23) -> 0
A27: * öff. zugängl.: | B27: öffentlich zugängliche Ladepunkte im Sinne der Verordnung über technische Mindestanforderungen an den sicheren und interoperablen Aufbau und Betrieb von öffentlich zugänglichen Ladepunkten für Elektromobile
A28: * nicht. öff. zugängl.: | B28: LIS ist für die Öffentlichkeit nicht zugänglich
A29: * DC : | B29: Gleichstrom-Ladeinfrastruktur
A30: * AC : | B30: Wechselstrom-Ladeinfrastruktur

Sheet spezielle Ladeinfrastruktur
A1: Ermittlung der förderfähigen Ausgaben für Ladeinfrastruktur die nicht in der Registerkarte "Ladeinfrastruktur" aufgeführt wird | F1: FKZ: | G1: =Fahrzeuge!I2 -> 03EMI3
A2: Hierfür müssen Sie entsprechende Angebote für die Ladeinfrastruktur eingeholt haben. Diese Angebote sind beizufügen.
A3: =IF(Fahrzeuge!C1="","Bitte geben Sie auf der Registerkarte 'Fahrzeuge' an, ob Sie zum Vorsteuerabzug berechtigt sind","") -> Bitte geben Sie auf der Registerkarte 'Fahrzeuge' an, ob Sie zum Vorsteuerabzug berechtigt sind
A5: Pos. | B5: Typ Ladeinfrastruktur (LIS) | C5: =IF(Fahrzeuge!$C$1="nein","Bruttopreis LIS laut beigefügtem Angebot *",IF(Fahrzeuge!$C$1="ja","Nettopreis LIS laut beigefügtem Angebot *","Bitte wählen sie aus, ob sie zum Vorsteuerabzug berechtigt sind!")) -> Bitte wählen sie aus, ob sie zum Vorsteuerabzug berechtigt sind! | D5: Anzahl zu beschaffender LIS dieses Typs | E5: Förderfähige Ausgaben | F5: Korrekturfeld PtJ
A6: 1 | E6: =IF(C6>0,D6*C6,"") -> 
A8: 2 | E8: =IF(C8>0,D8*C8,"") -> 
A10: 3 | E10: =IF(C10>0,D10*C10,"") -> 
A12: 4 | E12: =IF(C12>0,D12*C12,"") -> 
A14: 5 | E14: =IF(C14>0,D14*C14,"") -> 
A16: 6 | E16: =IF(C16>0,D16*C16,"") -> 
A18: 7 | E18: =IF(C18>0,D18*C18,"") -> 
A20: 8 | E20: =IF(C20>0,D20*C20,"") -> 
A22: 9 | E22: =IF(C22>0,D22*C22,"") -> 
A24: 10 | E24: =IF(C24>0,D24*C24,"") -> 
A26: Summe | E26: =IF(C6>0,SUM(E6:E24),"") -> 

Sheet Vorlage für AZA
A1: Vorlage zum Übertragen der Daten aus dieser Tabelle in den AZA in easyOnline, die Anzahl der zu beschaffenden Fzg. / LIS muss ggf. auf die Anschaffungsjahre aufgeteilt werden
A3: Gesamtfinanzierung - Gegenstände und andere Investitionen von mehr als 410 € im Einzelfall
D4: FKZ: | E4: =Fahrzeuge!I2 -> 03EMI3
A5: =IF(Fahrzeuge!$C$1="nein","Der Antragsteller ist nicht zum Vorsteuerabzug berechtigt.",IF(Fahrzeuge!$C$1="ja","Der Antragsteller ist zum Vorsteuerabzug berechtigt.","Bitte wählen sie aus, ob sie zum Vorsteuerabzug berechtigt sind!")) -> Bitte wählen sie aus, ob sie zum Vorsteuerabzug berechtigt sind!
A6: (sollte diese Aussage nicht zutreffen, wählen Sie bitte die entsprechende Option auf der Registerkarte "Fahrzeuge")
A8: lfd. Nr. | B8: Bezeichnung | C8: Zuwendungsfähige Ausgaben / Stück* | D8: Anzahl* | E8: F0833 Betrag €
A9: =IF(Fahrzeuge!$B13>"",Fahrzeuge!A13,0) -> 0 | B9: =IF(Fahrzeuge!$B13>"",CONCATENATE(Fahrzeuge!C13," ",Fahrzeuge!B13),"") ->  | C9: =IF(Fahrzeuge!$B13>"",Fahrzeuge!G13,"") ->  | D9: =IF(Fahrzeuge!$B13>"",Fahrzeuge!H13,"") ->  | E9: =IF(Fahrzeuge!$B13>"",Fahrzeuge!I13,"") -> 
A10: =IF(Fahrzeuge!$B14>"",Fahrzeuge!A14,0) -> 0 | B10: =IF(Fahrzeuge!$B14>"",CONCATENATE(Fahrzeuge!C14," ",Fahrzeuge!B14),"") ->  | C10: =IF(Fahrzeuge!$B14>"",Fahrzeuge!G14,"") ->  | D10: =IF(Fahrzeuge!$B14>"",Fahrzeuge!H14,"") ->  | E10: =IF(Fahrzeuge!$B14>"",Fahrzeuge!I14,"") -> 
A11: =IF(Fahrzeuge!$B15>"",Fahrzeuge!A15,0) -> 0 | B11: =IF(Fahrzeuge!$B15>"",CONCATENATE(Fahrzeuge!C15," ",Fahrzeuge!B15),"") ->  | C11: =IF(Fahrzeuge!$B15>"",Fahrzeuge!G15,"") ->  | D11: =IF(Fahrzeuge!$B15>"",Fahrzeuge!H15,"") ->  | E11: =IF(Fahrzeuge!$B15>"",Fahrzeuge!I15,"") -> 
A12: =IF(Fahrzeuge!$B16>"",Fahrzeuge!A16,0) -> 0 | B12: =IF(Fahrzeuge!$B16>"",CONCATENATE(Fahrzeuge!C16," ",Fahrzeuge!B16),"") ->  | C12: =IF(Fahrzeuge!$B16>"",Fahrzeuge!G16,"") ->  | D12: =IF(Fahrzeuge!$B16>"",Fahrzeuge!H16,"") ->  | E12: =IF(Fahrzeuge!$B16>"",Fahrzeuge!I16,"") -> 
A13: =IF(Fahrzeuge!$B17>"",Fahrzeuge!A17,0) -> 0 | B13: =IF(Fahrzeuge!$B17>"",CONCATENATE(Fahrzeuge!C17," ",Fahrzeuge!B17),"") ->  | C13: =IF(Fahrzeuge!$B17>"",Fahrzeuge!G17,"") ->  | D13: =IF(Fahrzeuge!$B17>"",Fahrzeuge!H17,"") ->  | E13: =IF(Fahrzeuge!$B17>"",Fahrzeuge!I17,"") -> 
A14: =IF(Fahrzeuge!$B18>"",Fahrzeuge!A18,0) -> 0 | B14: =IF(Fahrzeuge!$B18>"",CONCATENATE(Fahrzeuge!C18," ",Fahrzeuge!B18),"") ->  | C14: =IF(Fahrzeuge!$B18>"",Fahrzeuge!G18,"") ->  | D14: =IF(Fahrzeuge!$B18>"",Fahrzeuge!H18,"") ->  | E14: =IF(Fahrzeuge!$B18>"",Fahrzeuge!I18,"") -> 
A15: =IF(Fahrzeuge!$B19>"",Fahrzeuge!A19,0) -> 0 | B15: =IF(Fahrzeuge!$B19>"",CONCATENATE(Fahrzeuge!C19," ",Fahrzeuge!B19),"") ->  | C15: =IF(Fahrzeuge!$B19>"",Fahrzeuge!G19,"") ->  | D15: =IF(Fahrzeuge!$B19>"",Fahrzeuge!H19,"") ->  | E15: =IF(Fahrzeuge!$B19>"",Fahrzeuge!I19,"") -> 
A16: =IF(Fahrzeuge!$B20>"",Fahrzeuge!A20,0) -> 0 | B16: =IF(Fahrzeuge!$B20>"",CONCATENATE(Fahrzeuge!C20," ",Fahrzeuge!B20),"") ->  | C16: =IF(Fahrzeuge!$B20>"",Fahrzeuge!G20,"") ->  | D16: =IF(Fahrzeuge!$B20>"",Fahrzeuge!H20,"") ->  | E16: =IF(Fahrzeuge!$B20>"",Fahrzeuge!I20,"") -> 
A17: =IF(Fahrzeuge!$B21>"",Fahrzeuge!A21,0) -> 0 | B17: =IF(Fahrzeuge!$B21>"",CONCATENATE(Fahrzeuge!C21," ",Fahrzeuge!B21),"") ->  | C17: =IF(Fahrzeuge!$B21>"",Fahrzeuge!G21,"") ->  | D17: =IF(Fahrzeuge!$B21>"",Fahrzeuge!H21,"") ->  | E17: =IF(Fahrzeuge!$B21>"",Fahrzeuge!I21,"") -> 
A18: =IF(Fahrzeuge!$B22>"",Fahrzeuge!A22,0) -> 0 | B18: =IF(Fahrzeuge!$B22>"",CONCATENATE(Fahrzeuge!C22," ",Fahrzeuge!B22),"") ->  | C18: =IF(Fahrzeuge!$B22>"",Fahrzeuge!G22,"") ->  | D18: =IF(Fahrzeuge!$B22>"",Fahrzeuge!H22,"") ->  | E18: =IF(Fahrzeuge!$B22>"",Fahrzeuge!I22,"") -> 
A19: =IF(Fahrzeuge!$B23>"",Fahrzeuge!A23,0) -> 0 | B19: =IF(Fahrzeuge!$B23>"",CONCATENATE(Fahrzeuge!C23," ",Fahrzeuge!B23),"") ->  | C19: =IF(Fahrzeuge!$B23>"",Fahrzeuge!G23,"") ->  | D19: =IF(Fahrzeuge!$B23>"",Fahrzeuge!H23,"") ->  | E19: =IF(Fahrzeuge!$B23>"",Fahrzeuge!I23,"") -> 
A20: =IF(Fahrzeuge!$B24>"",Fahrzeuge!A24,0) -> 0 | B20: =IF(Fahrzeuge!$B24>"",CONCATENATE(Fahrzeuge!C24," ",Fahrzeuge!B24),"") ->  | C20: =IF(Fahrzeuge!$B24>"",Fahrzeuge!G24,"") ->  | D20: =IF(Fahrzeuge!$B24>"",Fahrzeuge!H24,"") ->  | E20: =IF(Fahrzeuge!$B24>"",Fahrzeuge!I24,"") -> 
A21: =IF(Fahrzeuge!$B25>"",Fahrzeuge!A25,0) -> 0 | B21: =IF(Fahrzeuge!$B25>"",CONCATENATE(Fahrzeuge!C25," ",Fahrzeuge!B25),"") ->  | C21: =IF(Fahrzeuge!$B25>"",Fahrzeuge!G25,"") ->  | D21: =IF(Fahrzeuge!$B25>"",Fahrzeuge!H25,"") ->  | E21: =IF(Fahrzeuge!$B25>"",Fahrzeuge!I25,"") -> 
A22: =IF(Fahrzeuge!$B26>"",Fahrzeuge!A26,0) -> 0 | B22: =IF(Fahrzeuge!$B26>"",CONCATENATE(Fahrzeuge!C26," ",Fahrzeuge!B26),"") ->  | C22: =IF(Fahrzeuge!$B26>"",Fahrzeuge!G26,"") ->  | D22: =IF(Fahrzeuge!$B26>"",Fahrzeuge!H26,"") ->  | E22: =IF(Fahrzeuge!$B26>"",Fahrzeuge!I26,"") -> 
A23: =IF(Fahrzeuge!$B27>"",Fahrzeuge!A27,0) -> 0 | B23: =IF(Fahrzeuge!$B27>"",CONCATENATE(Fahrzeuge!C27," ",Fahrzeuge!B27),"") ->  | C23: =IF(Fahrzeuge!$B27>"",Fahrzeuge!G27,"") ->  | D23: =IF(Fahrzeuge!$B27>"",Fahrzeuge!H27,"") ->  | E23: =IF(Fahrzeuge!$B27>"",Fahrzeuge!I27,"") -> 
A24: =IF(Fahrzeuge!$B28>"",Fahrzeuge!A28,0) -> 0 | B24: =IF(Fahrzeuge!$B28>"",CONCATENATE(Fahrzeuge!C28," ",Fahrzeuge!B28),"") ->  | C24: =IF(Fahrzeuge!$B28>"",Fahrzeuge!G28,"") ->  | D24: =IF(Fahrzeuge!$B28>"",Fahrzeuge!H28,"") ->  | E24: =IF(Fahrzeuge!$B28>"",Fahrzeuge!I28,"") -> 
A25: =IF(Fahrzeuge!$B29>"",Fahrzeuge!A29,0) -> 0 | B25: =IF(Fahrzeuge!$B29>"",CONCATENATE(Fahrzeuge!C29," ",Fahrzeuge!B29),"") ->  | C25: =IF(Fahrzeuge!$B29>"",Fahrzeuge!G29,"") ->  | D25: =IF(Fahrzeuge!$B29>"",Fahrzeuge!H29,"") ->  | E25: =IF(Fahrzeuge!$B29>"",Fahrzeuge!I29,"") -> 
A26: =IF(Fahrzeuge!$B30>"",Fahrzeuge!A30,0) -> 0 | B26: =IF(Fahrzeuge!$B30>"",CONCATENATE(Fahrzeuge!C30," ",Fahrzeuge!B30),"") ->  | C26: =IF(Fahrzeuge!$B30>"",Fahrzeuge!G30,"") ->  | D26: =IF(Fahrzeuge!$B30>"",Fahrzeuge!H30,"") ->  | E26: =IF(Fahrzeuge!$B30>"",Fahrzeuge!I30,"") -> 
A27: =IF(Fahrzeuge!$B31>"",Fahrzeuge!A31,0) -> 0 | B27: =IF(Fahrzeuge!$B31>"",CONCATENATE(Fahrzeuge!C31," ",Fahrzeuge!B31),"") ->  | C27: =IF(Fahrzeuge!$B31>"",Fahrzeuge!G31,"") ->  | D27: =IF(Fahrzeuge!$B31>"",Fahrzeuge!H31,"") ->  | E27: =IF(Fahrzeuge!$B31>"",Fahrzeuge!I31,"") -> 
A28: =IF(Fahrzeuge!$B32>"",Fahrzeuge!A32,0) -> 0 | B28: =IF(Fahrzeuge!$B32>"",CONCATENATE(Fahrzeuge!C32," ",Fahrzeuge!B32),"") ->  | C28: =IF(Fahrzeuge!$B32>"",Fahrzeuge!G32,"") ->  | D28: =IF(Fahrzeuge!$B32>"",Fahrzeuge!H32,"") ->  | E28: =IF(Fahrzeuge!$B32>"",Fahrzeuge!I32,"") -> 
A29: =IF('LKW, Busse, Sonderfahrzeuge'!B6>"",A28+1,A28) -> 0 | B29: =IF('LKW, Busse, Sonderfahrzeuge'!$B6>"",'LKW, Busse, Sonderfahrzeuge'!$B6,"") ->  | C29: =IF('LKW, Busse, Sonderfahrzeuge'!$B6>"",'LKW, Busse, Sonderfahrzeuge'!F6,"") ->  | D29: =IF('LKW, Busse, Sonderfahrzeuge'!$B6>"",'LKW, Busse, Sonderfahrzeuge'!G6,"") ->  | E29: =IF('LKW, Busse, Sonderfahrzeuge'!$B6>"",'LKW, Busse, Sonderfahrzeuge'!H6,"") -> 
A30: =IF('LKW, Busse, Sonderfahrzeuge'!B8>"",A29+1,A29) -> 0 | B30: =IF('LKW, Busse, Sonderfahrzeuge'!$B8>"",'LKW, Busse, Sonderfahrzeuge'!$B8,"") ->  | C30: =IF('LKW, Busse, Sonderfahrzeuge'!$B8>"",'LKW, Busse, Sonderfahrzeuge'!F8,"") ->  | D30: =IF('LKW, Busse, Sonderfahrzeuge'!$B8>"",'LKW, Busse, Sonderfahrzeuge'!G8,"") ->  | E30: =IF('LKW, Busse, Sonderfahrzeuge'!$B8>"",'LKW, Busse, Sonderfahrzeuge'!H8,"") -> 
A31: =IF('LKW, Busse, Sonderfahrzeuge'!B10>"",A30+1,A30) -> 0 | B31: =IF('LKW, Busse, Sonderfahrzeuge'!$B10>"",'LKW, Busse, Sonderfahrzeuge'!$B10,"") ->  | C31: =IF('LKW, Busse, Sonderfahrzeuge'!$B10>"",'LKW, Busse, Sonderfahrzeuge'!F10,"") ->  | D31: =IF('LKW, Busse, Sonderfahrzeuge'!$B10>"",'LKW, Busse, Sonderfahrzeuge'!G10,"") ->  | E31: =IF('LKW, Busse, Sonderfahrzeuge'!$B10>"",'LKW, Busse, Sonderfahrzeuge'!H10,"") -> 
A32: =IF('LKW, Busse, Sonderfahrzeuge'!B12>"",A31+1,A31) -> 0 | B32: =IF('LKW, Busse, Sonderfahrzeuge'!$B12>"",'LKW, Busse, Sonderfahrzeuge'!$B12,"") ->  | C32: =IF('LKW, Busse, Sonderfahrzeuge'!$B12>"",'LKW, Busse, Sonderfahrzeuge'!F12,"") ->  | D32: =IF('LKW, Busse, Sonderfahrzeuge'!$B12>"",'LKW, Busse, Sonderfahrzeuge'!G12,"") ->  | E32: =IF('LKW, Busse, Sonderfahrzeuge'!$B12>"",'LKW, Busse, Sonderfahrzeuge'!H12,"") -> 
A33: =IF('LKW, Busse, Sonderfahrzeuge'!B14>"",A32+1,A32) -> 0 | B33: =IF('LKW, Busse, Sonderfahrzeuge'!$B14>"",'LKW, Busse, Sonderfahrzeuge'!$B14,"") ->  | C33: =IF('LKW, Busse, Sonderfahrzeuge'!$B14>"",'LKW, Busse, Sonderfahrzeuge'!F14,"") ->  | D33: =IF('LKW, Busse, Sonderfahrzeuge'!$B14>"",'LKW, Busse, Sonderfahrzeuge'!G14,"") ->  | E33: =IF('LKW, Busse, Sonderfahrzeuge'!$B14>"",'LKW, Busse, Sonderfahrzeuge'!H14,"") -> 
A34: =IF('LKW, Busse, Sonderfahrzeuge'!B16>"",A33+1,A33) -> 0 | B34: =IF('LKW, Busse, Sonderfahrzeuge'!$B16>"",'LKW, Busse, Sonderfahrzeuge'!$B16,"") ->  | C34: =IF('LKW, Busse, Sonderfahrzeuge'!$B16>"",'LKW, Busse, Sonderfahrzeuge'!F16,"") ->  | D34: =IF('LKW, Busse, Sonderfahrzeuge'!$B16>"",'LKW, Busse, Sonderfahrzeuge'!G16,"") ->  | E34: =IF('LKW, Busse, Sonderfahrzeuge'!$B16>"",'LKW, Busse, Sonderfahrzeuge'!H16,"") -> 
A35: =IF('LKW, Busse, Sonderfahrzeuge'!B18>"",A34+1,A34) -> 0 | B35: =IF('LKW, Busse, Sonderfahrzeuge'!$B18>"",'LKW, Busse, Sonderfahrzeuge'!$B18,"") ->  | C35: =IF('LKW, Busse, Sonderfahrzeuge'!$B18>"",'LKW, Busse, Sonderfahrzeuge'!F18,"") ->  | D35: =IF('LKW, Busse, Sonderfahrzeuge'!$B18>"",'LKW, Busse, Sonderfahrzeuge'!G18,"") ->  | E35: =IF('LKW, Busse, Sonderfahrzeuge'!$B18>"",'LKW, Busse, Sonderfahrzeuge'!H18,"") -> 
A36: =IF('LKW, Busse, Sonderfahrzeuge'!B20>"",A35+1,A35) -> 0 | B36: =IF('LKW, Busse, Sonderfahrzeuge'!$B20>"",'LKW, Busse, Sonderfahrzeuge'!$B20,"") ->  | C36: =IF('LKW, Busse, Sonderfahrzeuge'!$B20>"",'LKW, Busse, Sonderfahrzeuge'!F20,"") ->  | D36: =IF('LKW, Busse, Sonderfahrzeuge'!$B20>"",'LKW, Busse, Sonderfahrzeuge'!G20,"") ->  | E36: =IF('LKW, Busse, Sonderfahrzeuge'!$B20>"",'LKW, Busse, Sonderfahrzeuge'!H20,"") -> 
A37: =IF('LKW, Busse, Sonderfahrzeuge'!B22>"",A36+1,A36) -> 0 | B37: =IF('LKW, Busse, Sonderfahrzeuge'!$B22>"",'LKW, Busse, Sonderfahrzeuge'!$B22,"") ->  | C37: =IF('LKW, Busse, Sonderfahrzeuge'!$B22>"",'LKW, Busse, Sonderfahrzeuge'!F22,"") ->  | D37: =IF('LKW, Busse, Sonderfahrzeuge'!$B22>"",'LKW, Busse, Sonderfahrzeuge'!G22,"") ->  | E37: =IF('LKW, Busse, Sonderfahrzeuge'!$B22>"",'LKW, Busse, Sonderfahrzeuge'!H22,"") -> 
A38: =IF('LKW, Busse, Sonderfahrzeuge'!B24>"",A37+1,A37) -> 0 | B38: =IF('LKW, Busse, Sonderfahrzeuge'!$B24>"",'LKW, Busse, Sonderfahrzeuge'!$B24,"") ->  | C38: =IF('LKW, Busse, Sonderfahrzeuge'!$B24>"",'LKW, Busse, Sonderfahrzeuge'!F24,"") ->  | D38: =IF('LKW, Busse, Sonderfahrzeuge'!$B24>"",'LKW, Busse, Sonderfahrzeuge'!G24,"") ->  | E38: =IF('LKW, Busse, Sonderfahrzeuge'!$B24>"",'LKW, Busse, Sonderfahrzeuge'!H24,"") -> 
A39: =IF(Ladeinfrastruktur!B5>"",A38+1,A38) -> 0 | B39: =IF(Ladeinfrastruktur!$B5>"",Ladeinfrastruktur!B5,"") ->  | C39: =IF($B39>"",Ladeinfrastruktur!C5,"") ->  | D39: =IF($B39>"",Ladeinfrastruktur!D5,"") ->  | E39: =IF($B39>"",Ladeinfrastruktur!E5,"") -> 
A40: =IF(Ladeinfrastruktur!B7>"",A39+1,A39) -> 0 | B40: =IF(Ladeinfrastruktur!$B7>"",Ladeinfrastruktur!B7,"") ->  | C40: =IF($B40>"",Ladeinfrastruktur!C7,"") ->  | D40: =IF($B40>"",Ladeinfrastruktur!D7,"") ->  | E40: =IF($B40>"",Ladeinfrastruktur!E7,"") -> 
A41: =IF(Ladeinfrastruktur!B9>"",A40+1,A40) -> 0 | B41: =IF(Ladeinfrastruktur!$B9>"",Ladeinfrastruktur!B9,"") ->  | C41: =IF($B41>"",Ladeinfrastruktur!C9,"") ->  | D41: =IF($B41>"",Ladeinfrastruktur!D9,"") ->  | E41: =IF($B41>"",Ladeinfrastruktur!E9,"") -> 
A42: =IF(Ladeinfrastruktur!B11>"",A41+1,A41) -> 0 | B42: =IF(Ladeinfrastruktur!$B11>"",Ladeinfrastruktur!B11,"") ->  | C42: =IF($B42>"",Ladeinfrastruktur!C11,"") ->  | D42: =IF($B42>"",Ladeinfrastruktur!D11,"") ->  | E42: =IF($B42>"",Ladeinfrastruktur!E11,"") -> 
A43: =IF(Ladeinfrastruktur!B13>"",A42+1,A42) -> 0 | B43: =IF(Ladeinfrastruktur!$B13>"",Ladeinfrastruktur!B13,"") ->  | C43: =IF($B43>"",Ladeinfrastruktur!C13,"") ->  | D43: =IF($B43>"",Ladeinfrastruktur!D13,"") ->  | E43: =IF($B43>"",Ladeinfrastruktur!E13,"") -> 
A44: =IF(Ladeinfrastruktur!B15>"",A43+1,A43) -> 0 | B44: =IF(Ladeinfrastruktur!$B15>"",Ladeinfrastruktur!B15,"") ->  | C44: =IF($B44>"",Ladeinfrastruktur!C15,"") ->  | D44: =IF($B44>"",Ladeinfrastruktur!D15,"") ->  | E44: =IF($B44>"",Ladeinfrastruktur!E15,"") -> 
A45: =IF(Ladeinfrastruktur!B17>"",A44+1,A44) -> 0 | B45: =IF(Ladeinfrastruktur!$B17>"",Ladeinfrastruktur!B17,"") ->  | C45: =IF($B45>"",Ladeinfrastruktur!C17,"") ->  | D45: =IF($B45>"",Ladeinfrastruktur!D17,"") ->  | E45: =IF($B45>"",Ladeinfrastruktur!E17,"") -> 
A46: =IF(Ladeinfrastruktur!B19>"",A45+1,A45) -> 0 | B46: =IF(Ladeinfrastruktur!$B19>"",Ladeinfrastruktur!B19,"") ->  | C46: =IF($B46>"",Ladeinfrastruktur!C19,"") ->  | D46: =IF($B46>"",Ladeinfrastruktur!D19,"") ->  | E46: =IF($B46>"",Ladeinfrastruktur!E19,"") -> 
A47: =IF(Ladeinfrastruktur!B21>"",A46+1,A46) -> 0 | B47: =IF(Ladeinfrastruktur!$B21>"",Ladeinfrastruktur!B21,"") ->  | C47: =IF($B47>"",Ladeinfrastruktur!C21,"") ->  | D47: =IF($B47>"",Ladeinfrastruktur!D21,"") ->  | E47: =IF($B47>"",Ladeinfrastruktur!E21,"") -> 
A48: =IF(Ladeinfrastruktur!B23>"",A47+1,A47) -> 0 | B48: =IF(Ladeinfrastruktur!$B23>"",Ladeinfrastruktur!B23,"") ->  | C48: =IF($B48>"",Ladeinfrastruktur!C23,"") ->  | D48: =IF($B48>"",Ladeinfrastruktur!D23,"") ->  | E48: =IF($B48>"",Ladeinfrastruktur!E23,"") -> 
A49: =IF('spezielle Ladeinfrastruktur'!B6>"",A48+1,A48) -> 0 | B49: =IF('spezielle Ladeinfrastruktur'!$B6>"",'spezielle Ladeinfrastruktur'!B6,"") ->  | C49: =IF($B49>"",'spezielle Ladeinfrastruktur'!C6,"") ->  | D49: =IF('spezielle Ladeinfrastruktur'!$B6>"",'spezielle Ladeinfrastruktur'!D6,"") ->  | E49: =IF('spezielle Ladeinfrastruktur'!$B6>"",'spezielle Ladeinfrastruktur'!E6,"") -> 
A50: =IF('spezielle Ladeinfrastruktur'!B8>"",A49+1,A49) -> 0 | B50: =IF('spezielle Ladeinfrastruktur'!$B8>"",'spezielle Ladeinfrastruktur'!B8,"") ->  | C50: =IF($B50>"",'spezielle Ladeinfrastruktur'!C8,"") ->  | D50: =IF('spezielle Ladeinfrastruktur'!$B8>"",'spezielle Ladeinfrastruktur'!D8,"") ->  | E50: =IF('spezielle Ladeinfrastruktur'!$B8>"",'spezielle Ladeinfrastruktur'!E8,"") -> 
A51: =IF('spezielle Ladeinfrastruktur'!B10>"",A50+1,A50) -> 0 | B51: =IF('spezielle Ladeinfrastruktur'!$B10>"",'spezielle Ladeinfrastruktur'!B10,"") ->  | C51: =IF($B51>"",'spezielle Ladeinfrastruktur'!C10,"") ->  | D51: =IF('spezielle Ladeinfrastruktur'!$B10>"",'spezielle Ladeinfrastruktur'!D10,"") ->  | E51: =IF('spezielle Ladeinfrastruktur'!$B10>"",'spezielle Ladeinfrastruktur'!E10,"") -> 
A52: =IF('spezielle Ladeinfrastruktur'!B12>"",A51+1,A51) -> 0 | B52: =IF('spezielle Ladeinfrastruktur'!$B12>"",'spezielle Ladeinfrastruktur'!B12,"") ->  | C52: =IF($B52>"",'spezielle Ladeinfrastruktur'!C12,"") ->  | D52: =IF('spezielle Ladeinfrastruktur'!$B12>"",'spezielle Ladeinfrastruktur'!D12,"") ->  | E52: =IF('spezielle Ladeinfrastruktur'!$B12>"",'spezielle Ladeinfrastruktur'!E12,"") -> 
A53: =IF('spezielle Ladeinfrastruktur'!B14>"",A52+1,A52) -> 0 | B53: =IF('spezielle Ladeinfrastruktur'!$B14>"",'spezielle Ladeinfrastruktur'!B14,"") ->  | C53: =IF($B53>"",'spezielle Ladeinfrastruktur'!C14,"") ->  | D53: =IF('spezielle Ladeinfrastruktur'!$B14>"",'spezielle Ladeinfrastruktur'!D14,"") ->  | E53: =IF('spezielle Ladeinfrastruktur'!$B14>"",'spezielle Ladeinfrastruktur'!E14,"") -> 
A54: =IF('spezielle Ladeinfrastruktur'!B16>"",A53+1,A53) -> 0 | B54: =IF('spezielle Ladeinfrastruktur'!$B16>"",'spezielle Ladeinfrastruktur'!B16,"") ->  | C54: =IF($B54>"",'spezielle Ladeinfrastruktur'!C16,"") ->  | D54: =IF('spezielle Ladeinfrastruktur'!$B16>"",'spezielle Ladeinfrastruktur'!D16,"") ->  | E54: =IF('spezielle Ladeinfrastruktur'!$B16>"",'spezielle Ladeinfrastruktur'!E16,"") -> 
A55: =IF('spezielle Ladeinfrastruktur'!B18>"",A54+1,A54) -> 0 | B55: =IF('spezielle Ladeinfrastruktur'!$B18>"",'spezielle Ladeinfrastruktur'!B18,"") ->  | C55: =IF($B55>"",'spezielle Ladeinfrastruktur'!C18,"") ->  | D55: =IF('spezielle Ladeinfrastruktur'!$B18>"",'spezielle Ladeinfrastruktur'!D18,"") ->  | E55: =IF('spezielle Ladeinfrastruktur'!$B18>"",'spezielle Ladeinfrastruktur'!E18,"") -> 
A56: =IF('spezielle Ladeinfrastruktur'!B20>"",A55+1,A55) -> 0 | B56: =IF('spezielle Ladeinfrastruktur'!$B20>"",'spezielle Ladeinfrastruktur'!B20,"") ->  | C56: =IF($B56>"",'spezielle Ladeinfrastruktur'!C20,"") ->  | D56: =IF('spezielle Ladeinfrastruktur'!$B20>"",'spezielle Ladeinfrastruktur'!D20,"") ->  | E56: =IF('spezielle Ladeinfrastruktur'!$B20>"",'spezielle Ladeinfrastruktur'!E20,"") -> 
A57: =IF('spezielle Ladeinfrastruktur'!B22>"",A56+1,A56) -> 0 | B57: =IF('spezielle Ladeinfrastruktur'!$B22>"",'spezielle Ladeinfrastruktur'!B22,"") ->  | C57: =IF($B57>"",'spezielle Ladeinfrastruktur'!C22,"") ->  | D57: =IF('spezielle Ladeinfrastruktur'!$B22>"",'spezielle Ladeinfrastruktur'!D22,"") ->  | E57: =IF('spezielle Ladeinfrastruktur'!$B22>"",'spezielle Ladeinfrastruktur'!E22,"") -> 
A58: =IF('spezielle Ladeinfrastruktur'!B24>"",A57+1,A57) -> 0 | B58: =IF('spezielle Ladeinfrastruktur'!$B24>"",'spezielle Ladeinfrastruktur'!B24,"") ->  | C58: =IF($B58>"",'spezielle Ladeinfrastruktur'!C24,"") ->  | D58: =IF('spezielle Ladeinfrastruktur'!$B24>"",'spezielle Ladeinfrastruktur'!D24,"") ->  | E58: =IF('spezielle Ladeinfrastruktur'!$B24>"",'spezielle Ladeinfrastruktur'!E24,"") -> 
D59: Summe: | E59: =ROUND(SUM(E9:E58),0) -> 0
